Workbook

Sheet Cost Report Posting & Training (hidden)
A1: INCOMPLETE
A2: Cost Report training is completed between October and November each year so that providers are prepared to complete their cost report as soon as the year ends. The current year cost report template was made available to the providers at the beginning of the calendar year. Providers will need to be notified of any major template changes that would require them to transfer their data to a revised template. Providers will also be notified of any known changes (if any) to the upcoming calendar year template that will be posted in January.
A4: All the following resources will need to be revised for any changes made to the reporting & training process. Each resource has instructions located within the file.
A6: YYYY ABC Sample - Cost Report
A7: YYYY ABC Sample - Schedule H Rate History
A8: YYYY ABC Sample - Scheduel I Allocations
A9: YYYY Cost Report - Template
A10: YYYY Schedule H Rate History - Template
A11: YYYY Schedule I Allocations - Template
A12: YYYY Powerpoint Presentation
A13: YYYY Cost Report Instructions
A14: YYYY Schedule H Rate History - Training
A15: YYYY Comment Form
A16: YYYY Cost Report - Powerpoint Presentation Training
A18: In July each year begin working with the RMA to determine how many will be presented in each region and schedule training rooms as to ensure availability, seating, and projection capabilities.
A20: After the dates and locations have been scheduled make any necessary hotel and travel arrangments.

Sheet Cost Report Build Update (hidden)
A1: INCOMPLETE
A3: Workbook must be manipulated to accommodate DDA changes. Use the sample cost report to make changes so that the
A5: Unhide all tabs
A22: Unprotect all tabs
A29: Headings under the view tab will need to be selected to make changes to columns and rows
A37: Lists Tab
A38: Revise/update the lists on this tab for drop down menus used throughout the cost report. **This may affect formulas throughout the report.
A40: Adminstrator Regression Table
A41: Revise formulas in cells B2 through E2 to increase or decrease the maximum annual claimable Administrator ISS wages equal to the percentage change in the daily rate.
A43: RES Tab
A44: This schedule summarizes data from schedules B, C, D, & G in to a column format by program and by provider. The data is used to create the residential summary file used to provide DDA with cost report data in a format that can be analyzed and SAO for auditing purposes.
A46: If a reporting change is made to Schedule B, C, D, or G a corresponding change to the RES tab may be necessary. Once the changes are made verify the formulas are producing the correct data for each schedule section.
A49: Read Me Tab
A50: Revise #1 (highlighted green) annually to announce changes from the previous annual cost report template.
A51: Revise remaining list as necessary, including contact information at the bottom of the worksheet.
A53: Schedule A
A54: Revise as necessary. Verify all drop down lists and formulas are working for all schedules after making changes.
A56: Schedule B

Sheet 2023 Notes (hidden)
A1: 2022 Cost Report Template changes
A2: Regression table increased 23%
A3: Regression table changed back to 21 FTE's (SL & Combined agencies with fewer than 21 FTE's calculated on Schedule B are eligible to claim ISS, providing ISS duties are performed)
A4: Replaced Schedule E, reformated visually, added box for #3
A5: Corrected Sch F missing provider name
A6: Corrected spelling "regular" on Sch B, columns D/G
A7: Updated list tab - provider names, ID, & urban designation for drop down lists
A8: Revised ARC of Clark name to be Arc of Southwest Washington
A9: Updated Read Me tab #1 year to year changes
A10: Corrected formula for average Sch B, FTE calculation
A11: Added Lead/Supervisor settlement check points
A12: Updated - ABC sample Schedule E's, including additional formatting and print views
A13: Template revision date updated
A14: Schedule D covid revenue reporting hints added to lines 1 & 2 - in red font
A15: Created Sch B sample for ISS accrual reporting idea to yearend accrual reporting and reversal of accruals claimed in following year. Eliminate all other accrual may require policy change
A16: Added questions to Schedule C
A17: Added to RES tab: Region, Sch H # of clients by dividing # of days by 365,
A18: Added tab to gather ISS payroll detail: reg, OT, PTO, other wages, ER taxes, ER benefits, & the average regression table FTE's
A20: 2023 Cost Report Template changes
A21: Regression table increased 2% effective 1/1/23
A22: Read Me tab - Revised #1
A23: Revised all dates from 2022 to 2023

Sheet Lists (hidden)
A1: Provider Name | B1: Provider ID | C1: Urban Designation | E1: Schedule B Monthly / Quarterly | G1: Schedule B | L1: Program Type | N1: B&O CITY | O1: effective 1/1/22
G2: 1 | H2: 2a | I2: 2b | J2: 2c
A3: 1N - Accendo of Washington | B3: 215573301 | C3: MSA | E3: Monthly | L3: SL Supported Living | N3: Aberdeen
A4: 1N - Adult Guidance & Empowerment Service | B4: 111684901 | C4: MSA | E4: Quarterly | G4: Yes | H4: Yes | I4: Yes | J4: Program Revenues | L4: GH Group Home | N4: Algona
A5: 1N - Alpha Supported Living (Spokane) | B5: 111320906 | C5: MSA | G5: No | H5: No | I5: No | J5: ISS/Direct Care Cost | L5: GTH Group Training Home | N5: Auburn
A6: 1N - Ambitions Accendo | B6: 111901911 | C6: MSA | J6: Other Method - Please describe | N6: Bainbridge Island
A7: 1N - Ambitions - Moses Lake, Omak, and Wenatchee | B7: 111901903 | C7: MSA/NON-MSA | N7: Bellevue
A8: 1N - Ambitions - Spokane | B8: 111901906 | C8: MSA | N8: Bellingham
A9: 1N - ARC of Spokane | B9: 111426502 | C9: MSA | N9: Blaine
A10: 1N - Assisted Residential Services | B10: 111705601 | C10: MSA | N10: Bremerton
A11: 1N - Community Integrated Services | B11: 111425301 | C11: MSA | N11: Burien
A12: 1N - Community Visions | B12: 111530102 | C12: MSA | N12: Burlington
A13: 1N - Dreamworks Residential | B13: 111913801 | C13: NON-MSA | N13: Cosmopolis
A14: 1N - Drive Services | B14: 111621401 | C14: MSA | N14: Darrington
A15: 1N - Excel Supported Living | B15: 111322002 | C15: MSA | N15: Des Moines
A16: 1N - Grace Support Services | B16: 212120601 | C16: MSA | N16: DuPont
A17: 1N - Grant County Developmental Disabilities (DCL) | B17: 200012501 | C17: NON-MSA | N17: Everett
A18: 1N - Hope Human Services (Spokane) | B18: 207150604 | C18: MSA | N18: Everson
A19: 1N - Hope Supported Living | B19: 213504001 | C19: MSA | N19: Granite Falls
A20: 1N - Kaler House | B20: 111686001 | C20: MSA | N20: Hoquiam
A21: 1N - LMK | B21: 111988202 | C21: NON-MSA | N21: Ilwaco
A22: 1N - Latah Services | B22: 111762501 | C22: MSA | N22: Issaquah
A23: 1N - Living In Fulfilling Environment | B23: 111777301 | C23: MSA | N23: Kelso
A24: 1N - Mission Vista | B24: 111707401 | C24: MSA | N24: Kenmore
A25: 1N - Parent's Cooperative Society for the Handicapped (Merry Glen) | B25: 111328901 | C25: MSA | N25: Kent
A26: 1N - ResCare Spokane | B26: 111968514 | C26: MSA | N26: Lacey
A27: 1N - Sails Spokane | B27: 111805707 | C27: MSA | N27: Lake Forest Park
A28: 1S - Alternative Residential Services | B28: 111625401 | C28: MSA/NON-MSA | N28: Long Beach
A29: 1S - Ambitions Ellensburg | B29: 111901909 | C29: NON-MSA | N29: Longview
A30: 1S - Ambitions - Kennewick | B30: 111901901 | C30: MSA | N30: Lyman
A31: 1S - Ambitions - Yakima | B31: 111901907 | C31: MSA | N31: Mercer Island
A32: 1S - Community Living | B32: 111962202 | C32: MSA | N32: North Bend
A33: 1S - Habilitat | B33: 111449601 | C33: NON-MSA | N33: Ocean Shores
A34: 1S - Kittitas Interactive Management | B34: 111688701 | C34: NON-MSA | N34: Olympia
A35: 1S - Kittitas Interactive Management (Yakima) | B35: 111688702 | C35: MSA | N35: Pacific
A36: 1S - Reach Supported Living | B36: 209862801 | C36: MSA | N36: Port Townsend
A37: 1S - Reach Supported Living Walla Walla | B37: 209862802 | C37: MSA | N37: Rainier
A38: 1S - Reach Supported Living Yakima | B38: 209862803 | C38: MSA | N38: Raymond
A39: 1S - Tri-Cities Residential Services | B39: 111872501 | C39: MSA | N39: Renton
A40: 1S - Valley Residential Services | B40: 111777901 | C40: NON-MSA | N40: Roy
A41: 2N - Access Living | B41: 111675101 | C41: MSA | N41: Ruston
A42: 2N - All Heart Agency | B42: 111961601 | C42: MSA | N42: Seattle
A43: 2N - Alpha Supported Living Services | B43: 111320902 | C43: MSA | N43: Shelton
A44: 2N - Ambitions Whatcom | B44: 111901908 | C44: MSA | N44: Shoreline
A45: 2N - Camelot Society | B45: 101955202 | C45: MSA | N45: Snoqualmie
A46: 2N - Cascade Connections | B46: 111724102 | C46: MSA | N46: South Bend
A47: 2N - Dungarvin | B47: 111414307 | C47: MSA | N47: Tacoma
A48: 2N - Evergreen Supported Living | B48: 111690301 | C48: MSA | N48: Tenino
A49: 2N - Holly Community Services | B49: 111765001 | C49: MSA | N49: Tumwater
A50: 2N - La Casa de Esperanza | B50: 111390801 | C50: MSA | N50: Westport
A51: 2N - Puffin Island | B51: 111959501 | C51: MSA | N51: Yelm
A52: 2N - Quilceda Community Services | B52: 111321203 | C52: MSA
A53: 2N - Rehabco | B53: 111681901 | C53: MSA
A54: 2N - Res-Care of Washington | B54: 111968512 | C54: MSA
A55: 2N - SAILS | B55: 111805705 | C55: MSA
A56: 2N - Service Alternatives | B56: 111513304 | C56: MSA
A57: 2N - Snohomish Supportive Living Services | B57: 111518901 | C57: MSA
A58: 2N - Soundview Association | B58: 111830201 | C58: MSA
A59: 2N - Steps Toward Independence | B59: 112034301 | C59: MSA
A60: 2N - Sunrise Services | B60: 203434610 | C60: MSA
A61: 2N - Village Community Services | B61: 111938301 | C61: MSA
A62: 2N - Volunteers of America | B62: 200494106 | C62: MSA
A63: 2S - Ablelight | B63: 111621301 | C63: KING
A64: 2S - Alpha Supported Living Services | B64: 111320901 | C64: KING
A65: 2S - Ambitions | B65: 111901902 | C65: KING
A66: 2S - Arc of King County | B66: 112013701 | C66: KING
A67: 2S - Banchero Disability Partners | B67: 111415001 | C67: KING
A68: 2S - Camelot Society | B68: 101955201 | C68: KING
A69: 2S - Cascade Community Services | B69: 111875001 | C69: KING
A70: 2S - CARR Supported Living King | B70: 111533401 | C70: KING
A71: 2S - Community Integrated Services | B71: 111425302 | C71: KING
A72: 2S - Community Living | B72: 111962201 | C72: KING
A73: 2S - Destiny House | B73: 111992801 | C73: KING
A74: 2S - Friendship House | B74: 111405501 | C74: KING
A75: 2S - Greenwood Home | B75: 111913301 | C75: KING
A76: 2S - Habilitation Services | B76: 208173701 | C76: KING
A77: 2S - Helping Hands DBA Dahlia | B77: 111736003 | C77: KING
A78: 2S - Hershey Housing | B78: 217522701 | C78: KING
A79: 2S - Inglewood Residential and Community Services | B79: 111568401 | C79: KING
A80: 2S - Integrated Living Services | B80: 111789002 | C80: KING
A81: 2S - L'Arche Noah Sealth of Seattle | B81: 111798601 | C81: KING
A82: 2S - Life Skills Center | B82: 111499601 | C82: KING
A83: 2S - Maksu | B83: 111577901 | C83: KING
A84: 2S - Parkview Services | B84: 111456901 | C84: KING
A85: 2S - Provail | B85: 101144803 | C85: KING
A86: 2S - Puget Sound Regional Services | B86: 111925301 | C86: KING
A87: 2S - Res-Care Washington | B87: 111968506 | C87: KING
A88: 2S - SAILS | B88: 111805704 | C88: KING
A89: 2S - Service Alternatives for WA | B89: 111513302 | C89: KING
A90: 2S - Shamrock Living Services | B90: 111958301 | C90: KING
A91: 2S - Shared Journeys | B91: 111515201 | C91: KING
A92: 2S - Stand Together | B92: 111753401 | C92: KING
A93: 2S - Tahoma Hills | B93: 111799101 | C93: KING
A94: 2S - Total Living Concept | B94: 111571101 | C94: KING
A95: 2S - United Friends Group Home | B95: 101601101 | C95: KING
A96: 2S - Volunteers of America | B96: 200494104 | C96: KING
A97: 3N - Ambitions | B97: 111901904 | C97: MSA
A98: 3N - Communitas Group | B98: 102702801 | C98: MSA
A99: 3N - Community Alternatives for People with Autism (CAPA) | B99: 112026801 | C99: MSA
A100: 3N - Dungarvin Pierce | B100: 111414304 | C100: MSA
A101: 3N - Educational Programs in Home Living | B101: 111975401 | C101: MSA
A102: 3N - Group Action for Peninsula People (GAPP) | B102: 111703801 | C102: MSA
A103: 3N - Hope Human Services | B103: 207150601 | C103: MSA
A104: 3N - Kitsap Residences | B104: 111781001 | C104: MSA
A105: 3N - Kitsap Tenant Support Services (KTSS) | B105: 111715902 | C105: MSA
A106: 3N - L'Arche Tahoma Hope Community | B106: 111610303 | C106: MSA
A107: 3N - Life Force Services | B107: 111691201 | C107: MSA
A108: 3N - NW Services for Independent Living (NWSIL) | B108: 111812601 | C108: MSA
A109: 3N - PAM Group Home | B109: 111728401 | C109: MSA
A110: 3N - Puget Sound Assisted Living | B110: 111557601 | C110: MSA
A111: 3N - Res-Care Washington | B111: 111968504 | C111: MSA
A112: 3N - Service Alternatives | B112: 111513305 | C112: MSA
A113: 3N - Steadfast Supported Living | B113: 217455001 | C113: MSA
A114: 3N - Tahoma Associates | B114: 111335302 | C114: MSA
A115: 3N - Valley Supported Living | B115: 111938101 | C115: MSA
A116: 3N - Vibrant Health Homecare | B116: 212772002 | C116: MSA
A117: 3S - ABC Residential Services | B117: 555777999 | C117: MSA
A118: 3S - Adam's Place | B118: 214039501 | C118: MSA
A119: 3S - Ambitions | B119: 111901905 | C119: MSA/NON-MSA
A120: 3S - Another Option | B120: 111619102 | C120: MSA
A121: 3S - Arc of Southwest Washington Clark | B121: 102623403 | C121: MSA
A122: 3S - CCH Individual Support Services | B122: 111909801 | C122: NON-MSA
A123: 3S - CARR Thurston | B123: 111533403 | C123: MSA
A124: 3S - CARR Clark | B124: 111533405 | C124: MSA
A125: 3S - Community Resources | B125: 111977701 | C125: MSA/NON-MSA
A126: 3S - Dungarvin Clark | B126: 111414303 | C126: NON-MSA
A127: 3S - Dungarvin Thurston | B127: 111414308 | C127: MSA
A128: 3S - Exceptional Foresters | B128: 111551801 | C128: MSA
A129: 3S - Harbor Alternative Living Association (HALA) | B129: 111349601 | C129: NON-MSA
A130: 3S - Hope Human Services | B130: 207150603 | C130: MSA
A131: 3S - Kitsap Tenant Support Services (KTSS) | B131: 111715901 | C131: NON-MSA
A132: 3S - Kokua | B132: 111492901 | C132: MSA
A133: 3S - Life Force Services - Thurston | B133: 111691202 | C133: MSA
A134: 3S - Life Works | B134: 111594402 | C134: MSA
A135: 3S - Northwest Supported Living - Clark | B135: 215510001 | C135: MSA
A136: 3S - Northwest Supported Living - Thurston | B136: 215510002 | C136: MSA
A137: 3S - Placeone | B137: 111512001 | C137: MSA
A138: 3S - Reside Residential | B138: 111864101 | C138: MSA
A139: 3S - ROAR | B139: 111442501 | C139: MSA
A140: 3S - SOLO | B140: 111910501 | C140: MSA
A141: 3S - Twin Harbors Group Home | B141: 111669901 | C141: NON-MSA
A142: 3S - Vancare | B142: 111811201 | C142: MSA
A143: DSHS/DDA Administrator Regression Table (Rev. 12/2022)

Sheet Administrator Regression Table (hidden)
A1: NUMBER OF ISS FTE's | B1: KING | C1: MSA | D1: MSA/ NON-MSA | E1: NON-MSA | G1: Annual ISS Wages used to calculate FTE's | H1: KING | I1: MSA | J1: MSA/ NON-MSA | K1: NON-MSA | M1: URBAN DESIGNATION & REPORTING PERIOD | N1: FTE MTH/QRT WAGES FOR FY | P1: =CONCATENATE(Q1,'B - ISS Payroll Expenses'!B10) ->  | Q1: =VLOOKUP(_M000001,Lists!A1:C144,3) ->  | R1: KING | S1: MSA | T1: MSA/ NON-MSA | U1: NON-MSA
A2: 1 | B2: =ROUND((117772.66*1.02),2) -> 120128.11 | C2: =ROUND((114154.46*1.02),2) -> 116437.55 | D2: =ROUND((113219.74*1.02),2) -> 115484.13 | E2: =ROUND((112285.04*1.02),2) -> 114530.74 | H2: =B2/2 -> 60064.055 | I2: =C2/2 -> 58218.775 | J2: =D2/2 -> 57742.065 | K2: =E2/2 -> 57265.37 | M2: KingMonthly | N2: =H2/12 -> 5005.337917
A3: 2 | B3: =$B$2-($B$2*(A3-1)*5%) -> 114121.7045 | C3: =$C$2-($C$2*(A3-1)*5%) -> 110615.6725 | D3: =$D$2-($D$2*(A3-1)*5%) -> 109709.9235 | E3: =$E$2-($E$2*(A3-1)*5%) -> 108804.203 | M3: KingQuarterly | N3: =H2/4 -> 15016.01375
A4: 3 | B4: 108115.299 | C4: 104793.795 | D4: 103935.717 | E4: 103077.666 | M4: MSA/NON-MSAMonthly | N4: =J2/12 -> 4811.83875
A5: 4 | B5: 102108.8935 | C5: 98971.9175 | D5: 98161.5105 | E5: 97351.129 | M5: MSA/NON-MSAQuarterly | N5: =J2/4 -> 14435.51625
A6: 5 | B6: 96102.488 | C6: 93150.04 | D6: 92387.304 | E6: 91624.592 | M6: MSAMonthly | N6: =I2/12 -> 4851.564583
A7: 6 | B7: 90096.0825 | C7: 87328.1625 | D7: 86613.0975 | E7: 85898.055 | M7: MSAQuarterly | N7: =I2/4 -> 14554.69375
A8: 7 | B8: 84089.677 | C8: 81506.285 | D8: 80838.891 | E8: 80171.518 | M8: NON-MSAMonthly | N8: =K2/12 -> 4772.114167
A9: 8 | B9: 78083.2715 | C9: 75684.4075 | D9: 75064.6845 | E9: 74444.981 | M9: NON-MSAQuarterly | N9: =K2/4 -> 14316.3425
A10: 9 | B10: 72076.866 | C10: 69862.53 | D10: 69290.478 | E10: 68718.444
A11: 10 | B11: 66070.4605 | C11: 64040.6525 | D11: 63516.2715 | E11: 62991.907
A12: 11 | B12: 60064.055 | C12: 58218.775 | D12: 57742.065 | E12: 57265.37
A13: 12 | B13: 54057.6495 | C13: 52396.8975 | D13: 51967.8585 | E13: 51538.833
A14: 13 | B14: 48051.244 | C14: 46575.02 | D14: 46193.652 | E14: 45812.296
A15: 14 | B15: 42044.8385 | C15: 40753.1425 | D15: 40419.4455 | E15: 40085.759 | R15: =IF('B - ISS Payroll Expenses'!D16=0,0,IF('B - ISS Payroll Expenses'!$B$10="Quarterly",0,VLOOKUP('B - ISS Payroll Expenses'!D16,'Administrator Regression Table'!$A$1:$E$22,2))/12) ->  | S15: =IF('B - ISS Payroll Expenses'!D16=0,0,IF('B - ISS Payroll Expenses'!$B$10="Quarterly",0,VLOOKUP('B - ISS Payroll Expenses'!D16,'Administrator Regression Table'!$A$1:$E$22,3))/12) ->  | T15: =IF('B - ISS Payroll Expenses'!D16=0,0,IF('B - ISS Payroll Expenses'!$B$10="Quarterly",0,VLOOKUP('B - ISS Payroll Expenses'!D16,'Administrator Regression Table'!$A$1:$E$22,4))/12) ->  | U15: =IF('B - ISS Payroll Expenses'!D16=0,0,IF('B - ISS Payroll Expenses'!$B$10="Quarterly",0,VLOOKUP('B - ISS Payroll Expenses'!D16,'Administrator Regression Table'!$A$1:$E$22,5))/12) -> 
A16: 15 | B16: 36038.433 | C16: 34931.265 | D16: 34645.239 | E16: 34359.222
A17: 16 | B17: 30032.0275 | C17: 29109.3875 | D17: 28871.0325 | E17: 28632.685
A18: 17 | B18: 24025.622 | C18: 23287.51 | D18: 23096.826 | E18: 22906.148
A19: 18 | B19: 18019.2165 | C19: 17465.6325 | D19: 17322.6195 | E19: 17179.611 | R19: =IF('B - ISS Payroll Expenses'!D21=0,0,IF('B - ISS Payroll Expenses'!$B$10="Quarterly",0,VLOOKUP('B - ISS Payroll Expenses'!D21,'Administrator Regression Table'!$A$1:$E$22,2))/12) ->  | S19: =IF('B - ISS Payroll Expenses'!D21=0,0,IF('B - ISS Payroll Expenses'!$B$10="Quarterly",0,VLOOKUP('B - ISS Payroll Expenses'!D21,'Administrator Regression Table'!$A$1:$E$22,3))/12) ->  | T19: =IF('B - ISS Payroll Expenses'!D21=0,0,IF('B - ISS Payroll Expenses'!$B$10="Quarterly",0,VLOOKUP('B - ISS Payroll Expenses'!D21,'Administrator Regression Table'!$A$1:$E$22,4))/12) ->  | U19: =IF('B - ISS Payroll Expenses'!D21=0,0,IF('B - ISS Payroll Expenses'!$B$10="Quarterly",0,VLOOKUP('B - ISS Payroll Expenses'!D21,'Administrator Regression Table'!$A$1:$E$22,5))/12) -> 
A20: 19 | B20: 12012.811 | C20: 11643.755 | D20: 11548.413 | E20: 11453.074
A21: 20 | B21: 6006.4055 | C21: 5821.8775 | D21: 5774.2065 | E21: 5726.537
A22: 21 | B22: 0 | C22: 0 | D22: 0 | E22: 0
A23: DSHS/DDA Administrator Regression Table (Rev. 12/2022) | R23: =IF('B - ISS Payroll Expenses'!D26=0,0,IF('B - ISS Payroll Expenses'!$B$10="Monthly",VLOOKUP('B - ISS Payroll Expenses'!D26,'Administrator Regression Table'!$A$1:$E$22,2)/12,VLOOKUP('B - ISS Payroll Expenses'!D26,'Administrator Regression Table'!$A$1:$E$22,2)/4)) ->  | S23: =IF('B - ISS Payroll Expenses'!D26=0,0,IF('B - ISS Payroll Expenses'!$B$10="Monthly",VLOOKUP('B - ISS Payroll Expenses'!D26,'Administrator Regression Table'!$A$1:$E$22,3)/12,VLOOKUP('B - ISS Payroll Expenses'!D26,'Administrator Regression Table'!$A$1:$E$22,3)/4)) ->  | T23: =IF('B - ISS Payroll Expenses'!D26=0,0,IF('B - ISS Payroll Expenses'!$B$10="Monthly",VLOOKUP('B - ISS Payroll Expenses'!D26,'Administrator Regression Table'!$A$1:$E$22,4)/12,VLOOKUP('B - ISS Payroll Expenses'!D26,'Administrator Regression Table'!$A$1:$E$22,4)/4)) ->  | U23: =IF('B - ISS Payroll Expenses'!D26=0,0,IF('B - ISS Payroll Expenses'!$B$10="Monthly",VLOOKUP('B - ISS Payroll Expenses'!D26,'Administrator Regression Table'!$A$1:$E$22,5)/12,VLOOKUP('B - ISS Payroll Expenses'!D26,'Administrator Regression Table'!$A$1:$E$22,5)/4)) -> 
R27: =IF('B - ISS Payroll Expenses'!D31=0,0,IF('B - ISS Payroll Expenses'!$B$10="Quarterly",0,VLOOKUP('B - ISS Payroll Expenses'!D31,'Administrator Regression Table'!$A$1:$E$22,2))/12) ->  | S27: =IF('B - ISS Payroll Expenses'!D31=0,0,IF('B - ISS Payroll Expenses'!$B$10="Quarterly",0,VLOOKUP('B - ISS Payroll Expenses'!D31,'Administrator Regression Table'!$A$1:$E$22,3))/12) ->  | T27: =IF('B - ISS Payroll Expenses'!D31=0,0,IF('B - ISS Payroll Expenses'!$B$10="Quarterly",0,VLOOKUP('B - ISS Payroll Expenses'!D31,'Administrator Regression Table'!$A$1:$E$22,4))/12) ->  | U27: =IF('B - ISS Payroll Expenses'!D31=0,0,IF('B - ISS Payroll Expenses'!$B$10="Quarterly",0,VLOOKUP('B - ISS Payroll Expenses'!D31,'Administrator Regression Table'!$A$1:$E$22,5))/12) -> 
R31: =IF('B - ISS Payroll Expenses'!D36=0,0,IF('B - ISS Payroll Expenses'!$B$10="Quarterly",0,VLOOKUP('B - ISS Payroll Expenses'!D36,'Administrator Regression Table'!$A$1:$E$22,2))/12) ->  | S31: =IF('B - ISS Payroll Expenses'!D36=0,0,IF('B - ISS Payroll Expenses'!$B$10="Quarterly",0,VLOOKUP('B - ISS Payroll Expenses'!D36,'Administrator Regression Table'!$A$1:$E$22,3))/12) ->  | T31: =IF('B - ISS Payroll Expenses'!D36=0,0,IF('B - ISS Payroll Expenses'!$B$10="Quarterly",0,VLOOKUP('B - ISS Payroll Expenses'!D36,'Administrator Regression Table'!$A$1:$E$22,4))/12) ->  | U31: =IF('B - ISS Payroll Expenses'!D36=0,0,IF('B - ISS Payroll Expenses'!$B$10="Quarterly",0,VLOOKUP('B - ISS Payroll Expenses'!D36,'Administrator Regression Table'!$A$1:$E$22,5))/12) -> 
R35: =IF('B - ISS Payroll Expenses'!D41=0,0,IF('B - ISS Payroll Expenses'!$B$10="Monthly",VLOOKUP('B - ISS Payroll Expenses'!D41,'Administrator Regression Table'!$A$1:$E$22,2)/12,VLOOKUP('B - ISS Payroll Expenses'!D41,'Administrator Regression Table'!$A$1:$E$22,2)/4)) ->  | S35: =IF('B - ISS Payroll Expenses'!D41=0,0,IF('B - ISS Payroll Expenses'!$B$10="Monthly",VLOOKUP('B - ISS Payroll Expenses'!D41,'Administrator Regression Table'!$A$1:$E$22,3)/12,VLOOKUP('B - ISS Payroll Expenses'!D41,'Administrator Regression Table'!$A$1:$E$22,3)/4)) ->  | T35: =IF('B - ISS Payroll Expenses'!D41=0,0,IF('B - ISS Payroll Expenses'!$B$10="Monthly",VLOOKUP('B - ISS Payroll Expenses'!D41,'Administrator Regression Table'!$A$1:$E$22,4)/12,VLOOKUP('B - ISS Payroll Expenses'!D41,'Administrator Regression Table'!$A$1:$E$22,4)/4)) ->  | U35: =IF('B - ISS Payroll Expenses'!D41=0,0,IF('B - ISS Payroll Expenses'!$B$10="Monthly",VLOOKUP('B - ISS Payroll Expenses'!D41,'Administrator Regression Table'!$A$1:$E$22,5)/12,VLOOKUP('B - ISS Payroll Expenses'!D41,'Administrator Regression Table'!$A$1:$E$22,5)/4)) -> 
R39: =IF('B - ISS Payroll Expenses'!D46=0,0,IF('B - ISS Payroll Expenses'!$B$10="Quarterly",0,VLOOKUP('B - ISS Payroll Expenses'!D46,'Administrator Regression Table'!$A$1:$E$22,2))/12) ->  | S39: =IF('B - ISS Payroll Expenses'!D46=0,0,IF('B - ISS Payroll Expenses'!$B$10="Quarterly",0,VLOOKUP('B - ISS Payroll Expenses'!D46,'Administrator Regression Table'!$A$1:$E$22,3))/12) ->  | T39: =IF('B - ISS Payroll Expenses'!D46=0,0,IF('B - ISS Payroll Expenses'!$B$10="Quarterly",0,VLOOKUP('B - ISS Payroll Expenses'!D46,'Administrator Regression Table'!$A$1:$E$22,4))/12) ->  | U39: =IF('B - ISS Payroll Expenses'!D46=0,0,IF('B - ISS Payroll Expenses'!$B$10="Quarterly",0,VLOOKUP('B - ISS Payroll Expenses'!D46,'Administrator Regression Table'!$A$1:$E$22,5))/12) -> 
R43: =IF('B - ISS Payroll Expenses'!D51=0,0,IF('B - ISS Payroll Expenses'!$B$10="Quarterly",0,VLOOKUP('B - ISS Payroll Expenses'!D51,'Administrator Regression Table'!$A$1:$E$22,2))/12) ->  | S43: =IF('B - ISS Payroll Expenses'!D51=0,0,IF('B - ISS Payroll Expenses'!$B$10="Quarterly",0,VLOOKUP('B - ISS Payroll Expenses'!D51,'Administrator Regression Table'!$A$1:$E$22,3))/12) ->  | T43: =IF('B - ISS Payroll Expenses'!D51=0,0,IF('B - ISS Payroll Expenses'!$B$10="Quarterly",0,VLOOKUP('B - ISS Payroll Expenses'!D51,'Administrator Regression Table'!$A$1:$E$22,4))/12) ->  | U43: =IF('B - ISS Payroll Expenses'!D51=0,0,IF('B - ISS Payroll Expenses'!$B$10="Quarterly",0,VLOOKUP('B - ISS Payroll Expenses'!D51,'Administrator Regression Table'!$A$1:$E$22,5))/12) -> 
R47: =IF('B - ISS Payroll Expenses'!D56=0,0,IF('B - ISS Payroll Expenses'!$B$10="Monthly",VLOOKUP('B - ISS Payroll Expenses'!D56,'Administrator Regression Table'!$A$1:$E$22,2)/12,VLOOKUP('B - ISS Payroll Expenses'!D56,'Administrator Regression Table'!$A$1:$E$22,2)/4)) ->  | S47: =IF('B - ISS Payroll Expenses'!D56=0,0,IF('B - ISS Payroll Expenses'!$B$10="Monthly",VLOOKUP('B - ISS Payroll Expenses'!D56,'Administrator Regression Table'!$A$1:$E$22,3)/12,VLOOKUP('B - ISS Payroll Expenses'!D56,'Administrator Regression Table'!$A$1:$E$22,3)/4)) ->  | T47: =IF('B - ISS Payroll Expenses'!D56=0,0,IF('B - ISS Payroll Expenses'!$B$10="Monthly",VLOOKUP('B - ISS Payroll Expenses'!D56,'Administrator Regression Table'!$A$1:$E$22,4)/12,VLOOKUP('B - ISS Payroll Expenses'!D56,'Administrator Regression Table'!$A$1:$E$22,4)/4)) ->  | U47: =IF('B - ISS Payroll Expenses'!D56=0,0,IF('B - ISS Payroll Expenses'!$B$10="Monthly",VLOOKUP('B - ISS Payroll Expenses'!D56,'Administrator Regression Table'!$A$1:$E$22,5)/12,VLOOKUP('B - ISS Payroll Expenses'!D56,'Administrator Regression Table'!$A$1:$E$22,5)/4)) -> 
R51: =IF('B - ISS Payroll Expenses'!D61=0,0,IF('B - ISS Payroll Expenses'!$B$10="Quarterly",0,VLOOKUP('B - ISS Payroll Expenses'!D61,'Administrator Regression Table'!$A$1:$E$22,2))/12) ->  | S51: =IF('B - ISS Payroll Expenses'!D61=0,0,IF('B - ISS Payroll Expenses'!$B$10="Quarterly",0,VLOOKUP('B - ISS Payroll Expenses'!D61,'Administrator Regression Table'!$A$1:$E$22,3))/12) ->  | T51: =IF('B - ISS Payroll Expenses'!D61=0,0,IF('B - ISS Payroll Expenses'!$B$10="Quarterly",0,VLOOKUP('B - ISS Payroll Expenses'!D61,'Administrator Regression Table'!$A$1:$E$22,4))/12) ->  | U51: =IF('B - ISS Payroll Expenses'!D61=0,0,IF('B - ISS Payroll Expenses'!$B$10="Quarterly",0,VLOOKUP('B - ISS Payroll Expenses'!D61,'Administrator Regression Table'!$A$1:$E$22,5))/12) -> 
R55: =IF('B - ISS Payroll Expenses'!D66=0,0,IF('B - ISS Payroll Expenses'!$B$10="Quarterly",0,VLOOKUP('B - ISS Payroll Expenses'!D66,'Administrator Regression Table'!$A$1:$E$22,2))/12) ->  | S55: =IF('B - ISS Payroll Expenses'!D66=0,0,IF('B - ISS Payroll Expenses'!$B$10="Quarterly",0,VLOOKUP('B - ISS Payroll Expenses'!D66,'Administrator Regression Table'!$A$1:$E$22,3))/12) ->  | T55: =IF('B - ISS Payroll Expenses'!D66=0,0,IF('B - ISS Payroll Expenses'!$B$10="Quarterly",0,VLOOKUP('B - ISS Payroll Expenses'!D66,'Administrator Regression Table'!$A$1:$E$22,4))/12) ->  | U55: =IF('B - ISS Payroll Expenses'!D66=0,0,IF('B - ISS Payroll Expenses'!$B$10="Quarterly",0,VLOOKUP('B - ISS Payroll Expenses'!D66,'Administrator Regression Table'!$A$1:$E$22,5))/12) -> 
R59: =IF('B - ISS Payroll Expenses'!D71=0,0,IF('B - ISS Payroll Expenses'!$B$10="Monthly",VLOOKUP('B - ISS Payroll Expenses'!D71,'Administrator Regression Table'!$A$1:$E$22,2)/12,VLOOKUP('B - ISS Payroll Expenses'!D71,'Administrator Regression Table'!$A$1:$E$22,2)/4)) ->  | S59: =IF('B - ISS Payroll Expenses'!D71=0,0,IF('B - ISS Payroll Expenses'!$B$10="Monthly",VLOOKUP('B - ISS Payroll Expenses'!D71,'Administrator Regression Table'!$A$1:$E$22,3)/12,VLOOKUP('B - ISS Payroll Expenses'!D71,'Administrator Regression Table'!$A$1:$E$22,3)/4)) ->  | T59: =IF('B - ISS Payroll Expenses'!D71=0,0,IF('B - ISS Payroll Expenses'!$B$10="Monthly",VLOOKUP('B - ISS Payroll Expenses'!D71,'Administrator Regression Table'!$A$1:$E$22,4)/12,VLOOKUP('B - ISS Payroll Expenses'!D71,'Administrator Regression Table'!$A$1:$E$22,4)/4)) ->  | U59: =IF('B - ISS Payroll Expenses'!D71=0,0,IF('B - ISS Payroll Expenses'!$B$10="Monthly",VLOOKUP('B - ISS Payroll Expenses'!D71,'Administrator Regression Table'!$A$1:$E$22,5)/12,VLOOKUP('B - ISS Payroll Expenses'!D71,'Administrator Regression Table'!$A$1:$E$22,5)/4)) -> 

Sheet ISS Detail (hidden)
A1: SCHEDULE B LINE/ROW | B1: Working ISS Expenses | D1: Non-working ISS Expenses | I1: TOTALS | J1: SCHEDULE B, COLUMN S | K1: VARIANCE
B2: REG WAGES | C2: 2/3 OT WAGES | D2: 1/3 OT WAGES | E2: PTO WAGES | F2: OTHER WAGES | G2: ER PAID TAXES | H2: ER PAID BENEFITS
A3: LINE 1 | B3: ='B - ISS Payroll Expenses'!E73 -> 0 | C3: ='B - ISS Payroll Expenses'!F73/3*2 -> 0 | D3: ='B - ISS Payroll Expenses'!F73/3 -> 0 | E3: ='B - ISS Payroll Expenses'!M73 -> 0 | F3: ='B - ISS Payroll Expenses'!N73 -> 0 | G3: ='B - ISS Payroll Expenses'!P73 -> 0 | H3: ='B - ISS Payroll Expenses'!Q73 -> 0 | I3: =SUM(B3:H3) -> 0 | J3: ='B - ISS Payroll Expenses'!S73 -> 0 | K3: =J3-I3 -> 0
A4: LINE 2 | B4: ='B - ISS Payroll Expenses'!E74 -> 0 | C4: ='B - ISS Payroll Expenses'!F74/3*2 -> 0 | D4: ='B - ISS Payroll Expenses'!F74/3 -> 0 | E4: ='B - ISS Payroll Expenses'!M74*'B - ISS Payroll Expenses'!G74 -> 0 | F4: ='B - ISS Payroll Expenses'!N74*'B - ISS Payroll Expenses'!G74 -> 0 | G4: ='B - ISS Payroll Expenses'!P74*'B - ISS Payroll Expenses'!G74 -> 0 | H4: ='B - ISS Payroll Expenses'!Q74*'B - ISS Payroll Expenses'!G74 -> 0 | I4: =SUM(B4:H4) -> 0 | J4: ='B - ISS Payroll Expenses'!S74 -> 0 | K4: =J4-I4 -> 0
A5: LINE 3 | B5: ='B - ISS Payroll Expenses'!E75 -> 0 | C5: ='B - ISS Payroll Expenses'!F75/3*2 -> 0 | D5: ='B - ISS Payroll Expenses'!F75/3 -> 0 | E5: ='B - ISS Payroll Expenses'!M75*'B - ISS Payroll Expenses'!G75 -> 0 | F5: ='B - ISS Payroll Expenses'!N75*'B - ISS Payroll Expenses'!G75 -> 0 | G5: ='B - ISS Payroll Expenses'!P75*'B - ISS Payroll Expenses'!G75 -> 0 | H5: ='B - ISS Payroll Expenses'!Q75*'B - ISS Payroll Expenses'!G75 -> 0 | I5: 0 | J5: ='B - ISS Payroll Expenses'!S75 -> 0 | K5: =J5-I5 -> 0
A6: LINE 4 | B6: =('B - ISS Payroll Expenses'!S76*('B - ISS Payroll Expenses'!E76/('B - ISS Payroll Expenses'!E76+'B - ISS Payroll Expenses'!F76+'B - ISS Payroll Expenses'!M76+'B - ISS Payroll Expenses'!N76+'B - ISS Payroll Expenses'!P76+'B - ISS Payroll Expenses'!Q76))) ->  | C6: =('B - ISS Payroll Expenses'!S76*('B - ISS Payroll Expenses'!F76/('B - ISS Payroll Expenses'!E76+'B - ISS Payroll Expenses'!F76+'B - ISS Payroll Expenses'!M76+'B - ISS Payroll Expenses'!N76+'B - ISS Payroll Expenses'!P76+'B - ISS Payroll Expenses'!Q76))/3)*2 ->  | D6: =('B - ISS Payroll Expenses'!S76*('B - ISS Payroll Expenses'!F76/('B - ISS Payroll Expenses'!E76+'B - ISS Payroll Expenses'!F76+'B - ISS Payroll Expenses'!M76+'B - ISS Payroll Expenses'!N76+'B - ISS Payroll Expenses'!P76+'B - ISS Payroll Expenses'!Q76)))/3 ->  | E6: ='B - ISS Payroll Expenses'!S76*('B - ISS Payroll Expenses'!M76/('B - ISS Payroll Expenses'!E76+'B - ISS Payroll Expenses'!F76+'B - ISS Payroll Expenses'!M76+'B - ISS Payroll Expenses'!N76+'B - ISS Payroll Expenses'!P76+'B - ISS Payroll Expenses'!Q76)) ->  | F6: ='B - ISS Payroll Expenses'!S76*('B - ISS Payroll Expenses'!N76/('B - ISS Payroll Expenses'!E76+'B - ISS Payroll Expenses'!F76+'B - ISS Payroll Expenses'!M76+'B - ISS Payroll Expenses'!N76+'B - ISS Payroll Expenses'!P76+'B - ISS Payroll Expenses'!Q76)) ->  | G6: ='B - ISS Payroll Expenses'!S76*('B - ISS Payroll Expenses'!P76/('B - ISS Payroll Expenses'!E76+'B - ISS Payroll Expenses'!F76+'B - ISS Payroll Expenses'!M76+'B - ISS Payroll Expenses'!N76+'B - ISS Payroll Expenses'!P76+'B - ISS Payroll Expenses'!Q76)) ->  | H6: ='B - ISS Payroll Expenses'!S76*('B - ISS Payroll Expenses'!Q76/('B - ISS Payroll Expenses'!E76+'B - ISS Payroll Expenses'!F76+'B - ISS Payroll Expenses'!M76+'B - ISS Payroll Expenses'!N76+'B - ISS Payroll Expenses'!P76+'B - ISS Payroll Expenses'!Q76)) ->  | J6: ='B - ISS Payroll Expenses'!S76 -> 0 | K6: =J6-I6 -> 
A7: TOTALS | B7: =SUM(B3:B6) ->  | C7: =SUM(C3:C6) ->  | I7: =SUM(I3:I6) ->  | J7: =SUM(J3:J6) -> 0 | K7: =SUM(K3:K6) -> 
I8: =I7-SUM(B7:H7) -> 
A9: AVG REGRESSION FTE'S | C9: ='B - ISS Payroll Expenses'!D76 -> 

Sheet RES (hidden)
B1: REGION: | C1: =LEFT(_M001742,2) -> 0 | D1: =LEFT(_M001742,2) -> 0 | E1: =LEFT(_M001742,2) -> 0
B2: FILE: | C2: =MID(CELL("filename",A1),FIND("[",CELL("filename",A1))+1,FIND(".",CELL("filename",A1),FIND("[",CELL("filename",A1))+1)-FIND("[",CELL("filename",A1))-1) -> 2023 Cost Report - Template | D2: =MID(CELL("filename",B2),FIND("[",CELL("filename",B2))+1,FIND(".",CELL("filename",B2),FIND("[",CELL("filename",B2))+1)-FIND("[",CELL("filename",B2))-1) -> 2023 Cost Report - Template | E2: =MID(CELL("filename",C2),FIND("[",CELL("filename",C2))+1,FIND(".",CELL("filename",C2),FIND("[",CELL("filename",C2))+1)-FIND("[",CELL("filename",C2))-1) -> 2023 Cost Report - Template
B3: PROVIDER ID: | C3: =_C000002 ->  | D3: =_C000002 ->  | E3: =_C000002 -> 
B4: PROVIDER REGION & NAME: | C4: =_M000001 -> 0 | D4: =_M000001 -> 0 | E4: =_M000001 -> 0
B5: PROVIDER MAILING ADDRESS: | C5: =_M000004 -> 0 | D5: =_M000004 -> 0 | E5: =_M000004 -> 0
B6: CITY, STATE, ZIP: | C6: =_M000005 -> 0 | D6: =_M000005 -> 0 | E6: =_M000005 -> 0
B7: HOME OFFICE MAILING ADDRESS: | C7: =IF(_M000011="","",_M000011) ->  | D7: =IF(_M000011="","",_M000011) ->  | E7: =IF(_M000011="","",_M000011) -> 
B8: HOME OFFICE CITY, STATE, ZIP: | C8: =IF(_M000012="","",_M000012) ->  | D8: =IF(_M000012="","",_M000012) ->  | E8: =IF(_M000012="","",_M000012) -> 
B9: HOME OFFICE PHONE: | C9: =IF(_M000013="","",_M000013) ->  | D9: =IF(_M000013="","",_M000013) ->  | E9: =IF(_M000013="","",_M000013) -> 
B10: ADMINISTRATOR: | C10: =_M000007 -> 0 | D10: =_M000007 -> 0 | E10: =_M000007 -> 0
B11: ADMINISTRATOR EMAIL: | C11: =_M000008 -> 0 | D11: =_M000008 -> 0 | E11: =_M000008 -> 0
B12: COST REPORT CONTACT | C12: =_M000016 -> 0 | D12: =_M000016 -> 0 | E12: =_M000016 -> 0
B13: COST REPORT CONTACT PHONE | C13: =_M000017 -> 0 | D13: =_M000017 -> 0 | E13: =_M000017 -> 0
B14: COST REPORT CONTACT EMAIL | C14: =_M000018 -> 0 | D14: =_M000018 -> 0 | E14: =_M000018 -> 0
B15: FEDERAL IDENTIFICATION NUMBER(S) | C15: ='A - General Info & Cert'!$D$20 -> 0 | D15: ='A - General Info & Cert'!$D$20 -> 0 | E15: ='A - General Info & Cert'!$D$20 -> 0
B16: PURCHASED PROFESSIONAL SERVICES | C16: ='C - Non-ISS Expenses'!$H$19 -> 0 | D16: ='C - Non-ISS Expenses'!$H$19 -> 0 | E16: ='C - Non-ISS Expenses'!$H$19 -> 0
A17: Line | B17: PROGRAM TYPE | C17: TOTAL SUPPORTED LIVING | D17: TOTAL GROUP HOME & GROUP TRAINING HOME | E17: TOTAL ALL PROGRAMS | F17: ='C - Non-ISS Expenses'!_M000101 -> 0 | G17: ='C - Non-ISS Expenses'!_M000102 -> 0 | H17: ='C - Non-ISS Expenses'!_M000105 -> 0
F18: =IF(_M001748="SL Supported Living",1,IF(_M001748="GH Group Home",2,IF(_M001748="GTH Group Training Home",3,0))) -> 0 | G18: =IF(_M001749="SL Supported Living",1,IF(_M001749="GH Group Home",2,IF(_M001749="GTH Group Training Home",3,0))) -> 0 | H18: =IF(_M001752="SL Supported Living",1,IF(_M001752="GH Group Home",2,IF(_M001752="GTH Group Training Home",3,0))) -> 0
A19: 1 | B19: ISS & PROFESSIONAL SERVICES STAFF REGULAR TIME PAYROLL EXPENSES | C19: =SUMIF($F$18:$H$18,1,F19:H19) -> 0 | D19: =(SUMIF($F$18:$H$18,2,F19:H19))+(SUMIF($F$18:$H$18,3,F19:H19)) -> 0 | E19: =SUM(F19:H19) -> 0 | F19: =IF($F$18=0,0,('B - ISS Payroll Expenses'!$S$73+'B - ISS Payroll Expenses'!$S$74-'B - ISS Payroll Expenses'!$F$73-'B - ISS Payroll Expenses'!$F$74)*(F58/_C002601)) -> 0 | G19: =IF($G$18=0,0,('B - ISS Payroll Expenses'!$S$73+'B - ISS Payroll Expenses'!$S$74-'B - ISS Payroll Expenses'!$F$73-'B - ISS Payroll Expenses'!$F$74)*(G58/_C002601)) -> 0 | H19: =IF($H$18=0,0,('B - ISS Payroll Expenses'!$S$73+'B - ISS Payroll Expenses'!$S$74-'B - ISS Payroll Expenses'!$F$73-'B - ISS Payroll Expenses'!$F$74)*(H58/_C002601)) -> 0
A20: 2 | B20: ISS & PROFESSIONAL SERVICES STAFF OVERTIME PAYROLL EXPENSES | C20: 0 | D20: 0 | E20: 0 | F20: =IF($F$18=0,0,('B - ISS Payroll Expenses'!$F$73+'B - ISS Payroll Expenses'!$F$74)*(_C002602/_C002601)) -> 0 | G20: =IF($G$18=0,0,('B - ISS Payroll Expenses'!$F$73+'B - ISS Payroll Expenses'!$F$74)*(_C002603/_C002601)) -> 0 | H20: =IF($H$18=0,0,('B - ISS Payroll Expenses'!$F$73+'B - ISS Payroll Expenses'!$F$74)*(_C002606/_C002601)) -> 0
A21: 3 | B21: ALLOWABLE GH ADMINISTRATOR ISS REGULAR TIME PAYROLL EXPENSES (GROUP HOME ONLY) | C21: 0 | D21: 0 | E21: 0 | F21: =IF($F$18=0,0,('B - ISS Payroll Expenses'!$S$75-'B - ISS Payroll Expenses'!$F$75)*(_C002602/_C002601)) -> 0 | G21: =IF($G$18=0,0,('B - ISS Payroll Expenses'!$S$75-'B - ISS Payroll Expenses'!$F$75)*(_C002603/_C002601)) -> 0 | H21: =IF($H$18=0,0,('B - ISS Payroll Expenses'!$S$75-'B - ISS Payroll Expenses'!$F$75)*(_C002606/_C002601)) -> 0
A22: 4 | B22: ALLOWABLE GH ADMINISTRATOR ISS OVERTIME PAYROLL EXPENSES (GROUP HOME ONLY) | C22: 0 | D22: 0 | E22: 0 | F22: =IF($F$18=0,0,'B - ISS Payroll Expenses'!$F$75*(_C002602/_C002601)) -> 0 | G22: =IF($G$18=0,0,'B - ISS Payroll Expenses'!$F$75*(_C002603/_C002601)) -> 0 | H22: =IF($H$18=0,0,'B - ISS Payroll Expenses'!$F$75*(_C002606/_C002601)) -> 0
A23: 5 | B23: ALLOWABLE SL/COMB ADMINISTRATOR ISS REGULAR TIME PAYROLL EXPENSES | C23: 0 | D23: 0 | E23: 0 | F23: =IF($F$18=0,0,('B - ISS Payroll Expenses'!$S$76-'B - ISS Payroll Expenses'!$F$76)*(_C002602/_C002601)) -> 0 | G23: =IF($G$18=0,0,('B - ISS Payroll Expenses'!$S$76-'B - ISS Payroll Expenses'!$F$76)*(_C002603/_C002601)) -> 0 | H23: =IF($H$18=0,0,('B - ISS Payroll Expenses'!$S$76-'B - ISS Payroll Expenses'!$F$76)*(_C002606/_C002601)) -> 0
A24: 6 | B24: ALLOWABLE SL/COMB ADMINISTRATOR ISS OVERTIME PAYROLL EXPENSES | C24: 0 | D24: 0 | E24: 0 | F24: =IF($F$18=0,0,'B - ISS Payroll Expenses'!$F$76*(_C002602/_C002601)) -> 0 | G24: =IF($G$18=0,0,'B - ISS Payroll Expenses'!$F$76*(_C002603/_C002601)) -> 0 | H24: =IF($H$18=0,0,'B - ISS Payroll Expenses'!$F$76*(_C002606/_C002601)) -> 0
B25: TOTAL ISS PAYROLL EXPENSES (SCHEDULE B) | C25: =SUM(C19:C24) -> 0 | D25: 0 | E25: 0 | F25: 0 | G25: 0 | H25: 0
A26: 7 | B26: AUTHORIZED PURCHASED/CONTRACTED ISS PROFESSIONAL SERVICES (SCHEDULE G) | C26: =SUMIF($F$18:$H$18,1,F26:H26) -> 0 | D26: =(SUMIF($F$18:$H$18,2,F26:H26))+(SUMIF($F$18:$H$18,3,F26:H26)) -> 0 | E26: =SUM(F26:H26) -> 0 | F26: =SUMIF('G - ISS Settlement'!$E$35:$E$37,F18,'G - ISS Settlement'!$C$35:$C$37) -> 0 | G26: =SUMIF('G - ISS Settlement'!$E$35:$E$37,G18,'G - ISS Settlement'!$C$35:$C$37) -> 0 | H26: =SUMIF('G - ISS Settlement'!$E$35:$E$37,H18,'G - ISS Settlement'!$C$35:$C$37) -> 0
B27: TOTAL ISS EXPENSES (SCHEDULE B & SCHEDULE G) | C27: =SUM(C25:C26) -> 0 | D27: 0 | E27: 0 | F27: 0 | G27: 0 | H27: 0
A28: 8 | B28: NON-ISS/ ADMINISTRATIVE STAFF REGULAR TIME PAYROLL EXPENSES | C28: =SUMIF($F$18:$H$18,1,F28:H28) -> 0 | D28: =(SUMIF($F$18:$H$18,2,F28:H28))+(SUMIF($F$18:$H$18,3,F28:H28)) -> 0 | E28: =SUM(F28:H28) -> 0 | F28: =IF($F$18=0,0,('B - ISS Payroll Expenses'!$T$73+'B - ISS Payroll Expenses'!$T$74-'B - ISS Payroll Expenses'!$I$73-'B - ISS Payroll Expenses'!$I$74)*(_C002602/_C002601)) -> 0 | G28: =IF($G$18=0,0,('B - ISS Payroll Expenses'!$T$73+'B - ISS Payroll Expenses'!$T$74-'B - ISS Payroll Expenses'!$I$73-'B - ISS Payroll Expenses'!$I$74)*(_C002603/_C002601)) -> 0 | H28: =IF($H$18=0,0,('B - ISS Payroll Expenses'!$T$73+'B - ISS Payroll Expenses'!$T$74-'B - ISS Payroll Expenses'!$I$73-'B - ISS Payroll Expenses'!$I$74)*(_C002606/_C002601)) -> 0
A29: 9 | B29: NON-ISS/ ADMINISTRATIVE STAFF OVERTIME PAYROLL EXPENSES | C29: 0 | D29: 0 | E29: 0 | F29: =IF($F$18=0,0,('B - ISS Payroll Expenses'!$I$73+'B - ISS Payroll Expenses'!$I$74)*(_C002602/_C002601)) -> 0 | G29: =IF($G$18=0,0,('B - ISS Payroll Expenses'!$I$73+'B - ISS Payroll Expenses'!$I$74)*(_C002603/_C002601)) -> 0 | H29: =IF($H$18=0,0,('B - ISS Payroll Expenses'!$I$73+'B - ISS Payroll Expenses'!$I$74)*(_C002606/_C002601)) -> 0
A30: 10 | B30: NON-ISS/ ADMINISTRATIVE GH ADMINISTRATOR REGULAR TIME PAYROLL EXPENSES | C30: 0 | D30: 0 | E30: 0 | F30: =IF($F$18=0,0,('B - ISS Payroll Expenses'!$T$75-'B - ISS Payroll Expenses'!$I$75)*(_C002602/_C002601)) -> 0 | G30: =IF($G$18=0,0,('B - ISS Payroll Expenses'!$T$75-'B - ISS Payroll Expenses'!$I$75)*(_C002603/_C002601)) -> 0 | H30: =IF($H$18=0,0,('B - ISS Payroll Expenses'!$T$75-'B - ISS Payroll Expenses'!$I$75)*(_C002606/_C002601)) -> 0
A31: 11 | B31: NON-ISS/ ADMINISTRATIVE GH ADMINISTRATOR OVERTIME PAYROLL EXPENSES | C31: 0 | D31: 0 | E31: 0 | F31: =IF($F$18=0,0,'B - ISS Payroll Expenses'!$I$75*(_C002602/_C002601)) -> 0 | G31: =IF($G$18=0,0,'B - ISS Payroll Expenses'!$I$75*(_C002603/_C002601)) -> 0 | H31: =IF($H$18=0,0,('B - ISS Payroll Expenses'!$I$75*(_C002606/_C002601))) -> 0
A32: 12 | B32: NON-ISS/ ADMINISTRATIVE SL/COMB ADMINISTRATOR REGULAR TIME PAYROLL EXPENSES | C32: 0 | D32: 0 | E32: 0 | F32: =IF($F$18=0,0,('B - ISS Payroll Expenses'!$T$76-'B - ISS Payroll Expenses'!$I$76)*(_C002602/_C002601)) -> 0 | G32: =IF($G$18=0,0,('B - ISS Payroll Expenses'!$T$76-'B - ISS Payroll Expenses'!$I$76)*(_C002603/_C002601)) -> 0 | H32: =IF($H$18=0,0,('B - ISS Payroll Expenses'!$T$76-'B - ISS Payroll Expenses'!$I$76)*(_C002606/_C002601)) -> 0
A33: 13 | B33: NON-ISS/ ADMINISTRATIVE SL/COMB ADMINISTRATOR OVERTIME PAYROLL EXPENSES | C33: 0 | D33: 0 | E33: 0 | F33: =IF($F$18=0,0,'B - ISS Payroll Expenses'!$I$76*(_C002602/_C002601)) -> 0 | G33: =IF($G$18=0,0,'B - ISS Payroll Expenses'!$I$76*(_C002603/_C002601)) -> 0 | H33: =IF($H$18=0,0,'B - ISS Payroll Expenses'!$I$76*(_C002606/_C002601)) -> 0
B34: TOTAL NON-ISS/ ADMINISTRATIVE PAYROLL EXPENSES (SCHEDULE B) | C34: =SUM(C28:C33) -> 0 | D34: =SUM(D28:D33) -> 0 | E34: =SUM(F34:H34) -> 0 | F34: =SUM(F28:F33) -> 0 | G34: =SUM(G28:G33) -> 0 | H34: =SUM(H28:H33) -> 0
A35: 14 | B35: ADMINISTRATIVE/ NON-ISS PAYROLL EXPENSES | C35: =SUMIF($F$18:$H$18,1,F35:H35) -> 0 | D35: =(SUMIF($F$18:$H$18,2,F35:H35))+(SUMIF($F$18:$H$18,3,F35:H35)) -> 0 | E35: =SUM(F35:H35) -> 0 | F35: ='C - Non-ISS Expenses'!F39 -> 0 | G35: ='C - Non-ISS Expenses'!G39 -> 0 | H35: ='C - Non-ISS Expenses'!H39 -> 0
A36: 15 | B36: PROGRAM OPERATIONS EXPENSES | C36: =SUMIF($F$18:$H$18,1,F36:H36) -> 0 | D36: =(SUMIF($F$18:$H$18,2,F36:H36))+(SUMIF($F$18:$H$18,3,F36:H36)) -> 0 | E36: 0 | F36: ='C - Non-ISS Expenses'!F41 -> 0 | G36: ='C - Non-ISS Expenses'!G41 -> 0 | H36: ='C - Non-ISS Expenses'!H41 -> 0
A37: 16 | B37: CAPITAL & PROPERTY EXPENSES | C37: =SUMIF($F$18:$H$18,1,F37:H37) -> 0 | D37: 0 | E37: 0 | F37: ='C - Non-ISS Expenses'!F43 -> 0 | G37: ='C - Non-ISS Expenses'!G43 -> 0 | H37: ='C - Non-ISS Expenses'!H43 -> 0
A38: 17 | B38: INTEREST & TAX EXPENSES | C38: =SUMIF($F$18:$H$18,1,F38:H38) -> 0 | D38: 0 | E38: 0 | F38: ='C - Non-ISS Expenses'!F45 -> 0 | G38: ='C - Non-ISS Expenses'!G45 -> 0 | H38: ='C - Non-ISS Expenses'!H45 -> 0
B39: TOTAL NON-ISS ADMINISTRATIVE & OPERATING EXPENSES (SCHEDULE C) | C39: =SUM(C35:C38) -> 0 | D39: 0 | E39: 0 | F39: 0 | G39: 0 | H39: 0
A40: 18 | B40: MAINTENANCE/LAUNDRY/HOUSEKEEPING/DIETARY (GROUP HOME ONLY) | C40: =SUMIF($F$18:$H$18,1,F40:H40) -> 0 | D40: 0 | E40: 0 | F40: ='C - Non-ISS Expenses'!F48 -> 0 | G40: ='C - Non-ISS Expenses'!G48 -> 0 | H40: ='C - Non-ISS Expenses'!H48 -> 0
A41: 19 | B41: TRANSPORTATION EXPENSES | C41: =SUMIF($F$18:$H$18,1,F41:H41) -> 0 | D41: 0 | E41: 0 | F41: ='C - Non-ISS Expenses'!F50 -> 0 | G41: ='C - Non-ISS Expenses'!G50 -> 0 | H41: ='C - Non-ISS Expenses'!H50 -> 0
A42: 20 | B42: OTHER NON-ISS CLIENT RELATED EXPENSES | C42: =SUMIF($F$18:$H$18,1,F42:H42) -> 0 | D42: 0 | E42: 0 | F42: ='C - Non-ISS Expenses'!F52 -> 0 | G42: ='C - Non-ISS Expenses'!G52 -> 0 | H42: ='C - Non-ISS Expenses'!H52 -> 0
B43: TOTAL NON-ISS CLIENT RELATED EXPENSES (SCHEDULE C) | C43: =SUM(C40:C42) -> 0 | D43: 0 | E43: 0 | F43: 0 | G43: 0 | H43: 0
B44: TOTAL NON-ISS/ ADMINISTRATIVE EXPENSES (SCHEDULE B & SCHEDULE C) | C44: =C34+C39+C43 -> 0 | D44: 0 | E44: 0 | F44: 0 | G44: 0 | H44: 0
B45: TOTAL PROGRAM EXPENSES (SCHEDULE B, C & G) | C45: =C27+C44 -> 0 | D45: 0 | E45: 0 | F45: 0 | G45: 0 | H45: 0
A46: 21 | B46: REVENUE FOR SERVICES PROVIDED | C46: =SUMIF($F$18:$H$18,1,F46:H46) -> 0 | D46: 0 | E46: 0 | F46: ='D - Revenue'!F8 -> 0 | G46: ='D - Revenue'!G8 -> 0 | H46: ='D - Revenue'!H8 -> 0
A47: 22 | B47: OTHER OPERATING REVENUE | C47: =SUMIF($F$18:$H$18,1,F47:H47) -> 0 | D47: 0 | E47: 0 | F47: ='D - Revenue'!F10 -> 0 | G47: ='D - Revenue'!G10 -> 0 | H47: ='D - Revenue'!H10 -> 0
A48: 23 | B48: NON OPERATING REVENUE | C48: =SUMIF($F$18:$H$18,1,F48:H48) -> 0 | D48: 0 | E48: 0 | F48: ='D - Revenue'!F12 -> 0 | G48: ='D - Revenue'!G12 -> 0 | H48: ='D - Revenue'!H12 -> 0
B49: TOTAL REVENUES (SCHEDULE D) | C49: =SUM(C46:C48) -> 0 | D49: 0 | E49: 0 | F49: 0 | G49: 0 | H49: 0
A50: 24 | B50: ANNUAL ISS TIERED REIMBURSEMENT | C50: =SUMIF($F$18:$H$18,1,F50:H50) -> 0 | D50: =(SUMIF($F$18:$H$18,2,F50:H50))+(SUMIF($F$18:$H$18,3,F50:H50)) -> 0 | E50: 0 | F50: =IF($F$18=0,0,VLOOKUP($F$18,RES!$A$73:$AL$75,25)) -> 0 | G50: =IF($G$18=0,0,VLOOKUP($G$18,RES!$A$73:$AL$75,25)) -> 0 | H50: =IF($H$18=0,0,VLOOKUP($H$18,RES!$A$73:$AL$75,25)) -> 0
A51: 25 | B51: ANNUAL ISS CRST REIMBURSEMENT | C51: =SUMIF($F$18:$H$18,1,F51:H51) -> 0 | D51: =(SUMIF($F$18:$H$18,2,F51:H51))+(SUMIF($F$18:$H$18,3,F51:H51)) -> 0 | E51: 0 | F51: =IF($F$18=0,0,VLOOKUP($F$18,RES!$A$73:$AL$75,27)) -> 0 | G51: =IF($G$18=0,0,VLOOKUP($G$18,RES!$A$73:$AL$75,27)) -> 0 | H51: =IF($H$18=0,0,VLOOKUP($H$18,RES!$A$73:$AL$75,27)) -> 0
A52: 26 | B52: ANNUAL ISS PROFESSIONAL SERVICES PAID | C52: =SUMIF($F$18:$H$18,1,F52:H52) -> 0 | D52: =(SUMIF($F$18:$H$18,2,F52:H52))+(SUMIF($F$18:$H$18,3,F52:H52)) -> 0 | E52: =SUM(F52:H52) -> 0 | F52: =IF($F$18=0,0,VLOOKUP($F$18,RES!$A$73:$AL$75,26)) -> 0 | G52: =IF($G$18=0,0,VLOOKUP($G$18,RES!$A$73:$AL$75,26)) -> 0 | H52: =IF($H$18=0,0,VLOOKUP($H$18,RES!$A$73:$AL$75,26)) -> 0
B53: TOTAL ISS TIERED REIMBURSEMENTS (RECONCILED SCHEDULE H) | C53: =SUM(C50:C52) -> 0 | D53: =SUM(D50:D52) -> 0 | E53: =SUM(F53:H53) -> 0 | F53: =SUM(F50:F52) -> 0 | G53: =SUM(G50:G52) -> 0 | H53: =SUM(H50:H52) -> 0
A54: 27 | B54: TOTAL ISS TIERED REIMBURSEMENTS | C54: =SUMIF($F$18:$H$18,1,F54:H54) -> 0 | D54: =(SUMIF($F$18:$H$18,2,F54:H54))+(SUMIF($F$18:$H$18,3,F54:H54)) -> 0 | E54: =SUM(F54:H54) -> 0 | F54: =SUMIF('G - ISS Settlement'!E9:E11,F18,'G - ISS Settlement'!C9:C11) -> 0 | G54: =SUMIF('G - ISS Settlement'!E9:E11,RES!G18,'G - ISS Settlement'!C9:C11) -> 0 | H54: =SUMIF('G - ISS Settlement'!E9:E11,RES!H18,'G - ISS Settlement'!C9:C11) -> 0
A55: 28 | B55: PROFESSIONAL SERVICES REIMBURSED | C55: =SUMIF($F$18:$H$18,1,F55:H55) -> 0 | D55: =(SUMIF($F$18:$H$18,2,F55:H55))+(SUMIF($F$18:$H$18,3,F55:H55)) -> 0 | E55: =SUM(F55:H55) -> 0 | F55: =SUMIF('G - ISS Settlement'!E24:E26,F18,'G - ISS Settlement'!C24:C26) -> 0 | G55: =SUMIF('G - ISS Settlement'!E24:E26,G18,'G - ISS Settlement'!C24:C26) -> 0 | H55: =SUMIF('G - ISS Settlement'!E24:E26,H18,'G - ISS Settlement'!C24:C26) -> 0
A56: 29 | B56: NURSE DELEGATION REIMBURSED | C56: =SUMIF($F$18:$H$18,1,F56:H56) -> 0 | D56: 0 | E56: 0 | F56: =SUMIF('G - ISS Settlement'!E15:E17,F18,'G - ISS Settlement'!C15:C17) -> 0 | G56: =SUMIF('G - ISS Settlement'!E15:E17,RES!G18,'G - ISS Settlement'!C15:C17) -> 0 | H56: =SUMIF('G - ISS Settlement'!E15:E17,RES!H18,'G - ISS Settlement'!C15:C17) -> 0
A57: 30 | B57: STAFF ADD ON REIMBURSEMENTS | C57: =SUMIF($F$18:$H$18,1,F57:H57) -> 0 | D57: =(SUMIF($F$18:$H$18,2,F57:H57))+(SUMIF($F$18:$H$18,3,F57:H57)) -> 0 | E57: =SUM(F57:H57) -> 0 | F57: =SUMIF('G - ISS Settlement'!E18:E20,F18,'G - ISS Settlement'!C18:C20) -> 0 | G57: =SUMIF('G - ISS Settlement'!E18:E20,G18,'G - ISS Settlement'!C18:C20) -> 0 | H57: =SUMIF('G - ISS Settlement'!E18:E20,H18,'G - ISS Settlement'!C18:C20) -> 0
B58: TOTAL ISS REIMBURSEMENTS (SCHEDULE G) | C58: =SUM(C54:C57) -> 0 | D58: =SUM(D54:D57) -> 0 | E58: =SUM(F58:H58) -> 0 | F58: =SUM(F54:F57) -> 0 | G58: =SUM(G54:G57) -> 0 | H58: =SUM(H54:H57) -> 0
B59: TOTAL PRELIMINRY SETTLEMENT - ISS REIMBURSEMENTS MINUS ISS EXPENSES (SCHEDULE G) | C59: =IF(C58-C27<=0,0,C58-C27) -> 0 | D59: =IF(D58-D27<=0,0,D58-D27) -> 0 | E59: =(E58-E27) -> 0 | F59: =(F58-F27) -> 0 | G59: =(G58-G27) -> 0 | H59: =(H58-H27) -> 0
A60: 31 | B60: ANNUAL NON-ISS/ AMININISTRATIVE REIMBURSEMENTS | C60: =SUMIF($F$18:$H$18,1,F60:H60) -> 0 | D60: =(SUMIF($F$18:$H$18,2,F60:H60))+(SUMIF($F$18:$H$18,3,F60:H60)) -> 0 | E60: =SUM(F60:H60) -> 0 | F60: =IF($F$18=0,0,VLOOKUP($F$18,RES!$A$73:$AL$75,29)) -> 0 | G60: =IF($G$18=0,0,VLOOKUP($G$18,RES!$A$73:$AL$75,29)) -> 0 | H60: =IF($H$18=0,0,VLOOKUP($H$18,RES!$A$73:$AL$75,29)) -> 0
A61: 32 | B61: ANNUAL NON-ISS TEMPORARY RATE ADJUSTMENT REIMBURSEMENTS | C61: 0 | D61: 0 | E61: =SUM(F61:H61) -> 0 | F61: =IF($F$18=0,0,VLOOKUP($F$18,RES!$A$73:$AL$75,30)) -> 0 | G61: =IF($G$18=0,0,VLOOKUP($G$18,RES!$A$73:$AL$75,30)) -> 0 | H61: =IF($H$18=0,0,VLOOKUP($H$18,RES!$A$73:$AL$75,30)) -> 0
A62: 33 | B62: ANNUAL NON-ISS/ ADMINISTRATIVE CRST REIMBURSEMENTS | C62: 0 | D62: 0 | E62: 0 | F62: =IF($F$18=0,0,VLOOKUP($F$18,RES!$A$73:$AL$75,31)) -> 0 | G62: =IF($G$18=0,0,VLOOKUP($G$18,RES!$A$73:$AL$75,31)) -> 0 | H62: =IF($H$18=0,0,VLOOKUP($H$18,RES!$A$73:$AL$75,31)) -> 0
A63: 34 | B63: ANNUAL NON-ISS ADMIN CERT RATE REIMBURSEMENTS | C63: 0 | D63: 0 | E63: 0 | F63: =IF($F$18=0,0,VLOOKUP($F$18,RES!$A$73:$AL$75,32)) -> 0 | G63: =IF($G$18=0,0,VLOOKUP($G$18,RES!$A$73:$AL$75,32)) -> 0 | H63: =IF($H$18=0,0,VLOOKUP($H$18,RES!$A$73:$AL$75,32)) -> 0
A64: 35 | B64: ANNUAL NON-ISS TRANSPORTATION REIMBURSEMENTS | C64: 0 | D64: 0 | E64: 0 | F64: =IF($F$18=0,0,VLOOKUP($F$18,RES!$A$73:$AL$75,33)) -> 0 | G64: =IF($G$18=0,0,VLOOKUP($G$18,RES!$A$73:$AL$75,33)) -> 0 | H64: =IF($H$18=0,0,VLOOKUP($H$18,RES!$A$73:$AL$75,33)) -> 0
A65: 36 | B65: ANNUAL NON-ISS OTHER REIMBURSEMENTS | C65: 0 | D65: 0 | E65: 0 | F65: =IF($F$18=0,0,VLOOKUP($F$18,RES!$A$73:$AL$75,34)) -> 0 | G65: =IF($G$18=0,0,VLOOKUP($G$18,RES!$A$73:$AL$75,34)) -> 0 | H65: =IF($H$18=0,0,VLOOKUP($H$18,RES!$A$73:$AL$75,34)) -> 0
B66: TOTAL NON-ISS/ADMINISTRATIVE REIMBURSEMENTS (RECONCILED SCHEDULE H) | C66: =SUM(C60:C65) -> 0 | D66: 0 | E66: 0 | F66: 0 | G66: 0 | H66: 0
B67: NET NON-ISS/ ADMIN INCOME/LOSS (RECONCILED SCHEDULE H LESS SCHEDULE B & C EXPENSES) | C67: =C66-C44 -> 0 | D67: 0 | E67: 0 | F67: 0 | G67: 0 | H67: 0
A68: 37 | B68: CLIENT DAYS | C68: =SUMIF($F$18:$H$18,1,F68:H68) -> 0 | D68: =(SUMIF($F$18:$H$18,2,F68:H68))+(SUMIF($F$18:$H$18,3,F68:H68)) -> 0 | E68: 0 | F68: =IF($F$18=0,0,VLOOKUP(RES!F18,RES!$A$73:$AL$75,10)) -> 0 | G68: =IF($G$18=0,0,VLOOKUP(RES!$G$18,RES!$A$73:$AL$75,10)) -> 0 | H68: =IF($H$18=0,0,VLOOKUP(RES!H18,RES!$A$73:$AL$75,10)) -> 0
A69: 38 | B69: NUMBER OF CLIENTS (SCH H) | C69: =SUMIF($F$18:$H$18,1,F69:H69) -> 0 | D69: =(SUMIF($F$18:$H$18,2,F69:H69))+(SUMIF($F$18:$H$18,3,F69:H69)) -> 0 | E69: =SUM(F69:H69) -> 0 | F69: =IF($F$18=0,0,VLOOKUP(RES!F18,RES!$A$73:$AL$75,11)) -> 0 | G69: =IF($G$18=0,0,VLOOKUP(RES!G18,RES!$A$73:$AL$75,11)) -> 0 | H69: =IF($H$18=0,0,VLOOKUP(RES!H18,RES!$A$73:$AL$75,11)) -> 0
A70: 39 | B70: NUMBER OF CLIENTS (SCH H CLIENT DAYS/365) | C70: =SUMIF($F$18:$H$18,1,F70:H70) -> 0 | D70: =(SUMIF($F$18:$H$18,2,F70:H70))+(SUMIF($F$18:$H$18,3,F70:H70)) -> 0 | E70: =SUM(F70:H70) -> 0 | F70: =ROUND(F68/365,0) -> 0 | G70: =ROUND(G68/365,0) -> 0 | H70: =ROUND(H68/365,0) -> 0
B72: Schedule H Rate History Total Lines 1-3 | E72: Program Type | J72: Resid Days Paid | K72: Client Count | P72: Total ISS Daily Rate | W72: Total Non-ISS Daily Rate | X72: Total ISS & Non-ISS Daily Rate | Y72: Annual ISS Paid | Z72: Annual ISS Prof Svs Paid | AA72: Annual ISS CRST Paid | AB72: Total Annual ISS Paid | AC72: Annual Admin Paid | AD72: Annual Temp Rate Adjust | AE72: Annual Admin CRST Paid | AF72: Annual Admin Cert Paid | AG72: Annual Transport Paid | AH72: Annual Other Non-ISS Paid | AI72: Total Annual Non-ISS Paid | AJ72: Annual ISS & Non-ISS Paid | AK72: Annual ISS & Non-ISS Paid per Client | AL72: Annual Days Paid per Client
A73: 1 | E73: SL Supported Living | J73: 3788 | K73: 16 | P73: 5151.35 | W73: 1717.0085 | X73: 6868.3585 | Y73: 781703.71 | Z73: 9614.08 | AA73: 14930.43 | AB73: 806248.22 | AC73: 135580.62 | AD73: 88687.3042 | AE73: 3741.01 | AF73: 9412.5 | AG73: 11102.2 | AH73: 19818.71 | AI73: 268342.3442 | AJ73: 1074590.564 | AK73: 1074590.564 | AL73: 3788
A74: 2 | E74: GH Group Home | J74: 1059 | K74: 3 | P74: 827.6 | W74: 331.576 | X74: 1159.176 | Y74: 230427.64 | Z74: 1402.75 | AA74: 4283.43 | AB74: 236113.82 | AC74: 59758.68 | AD74: 25972.5202 | AE74: 1075.24 | AF74: 2647.5 | AG74: 0 | AH74: 452.5 | AI74: 89906.4402 | AJ74: 326020.2602 | AK74: 326020.2602 | AL74: 1059
A75: 3 | E75: GTH Group Training Home | J75: 1021 | K75: 3 | P75: 821.98 | W75: 276.7478 | X75: 1098.7278 | Y75: 278004.26 | Z75: 0 | AA75: 5167.16 | AB75: 283171.42 | AC75: 58797.43 | AD75: 31148.8562 | AE75: 1295.44 | AF75: 2552.5 | AG75: 0 | AH75: 912.5 | AI75: 94706.7262 | AJ75: 377878.1462 | AK75: 377878.1462 | AL75: 1021

Sheet Checklist (hidden)
A1: RESIDENTIAL COST REPORT ANALYSIS CHECKLIST
B2: Agency Region & Name:
B3: ='A - General Info & Cert'!B6:C6 -> 0
B5: Upon receiving a cost report the analyst does the following for each schedule:
B7: Analyst Initials | C7: Date Analyzed | D7: Schedule | E7: To Be Reviewed/Analyzed
D8: Schedule A | E8: Verify correct provider name is selected in box 1 drop down list Be sure there is contact information for questions Check for dates in line 18 Signed certification is received via scan, fax, or mail
D9: Schedule B | E9: Verify that the appropriate reporting period is selected. If quarterly is selected only March, June, September, and December sections should have data entered. If an agency closes before year end the formula in C61 needs to have the number of months/quarters changed to how ever many months/quarters the agency was open during the calendar year. For each payroll reporting period (month/quarter) review the following: Row 1 - Check for reasonableness: If there are wages reported in columns D & E then in theory there should be amounts reported in columns O & P and possibly in column L. Row 2 - Check for reasonableness: Payroll reported on row 2 is for employees that perform ISS and non-ISS duties so in addition to ISS payroll in columns D & E verify that there is administrative or non-contracted payroll entered in columns G, H, or J. If a provider did not report any payroll on row 1 and only entered payroll on row 2 verify that all the payroll reported on row 2 is for employee's that work ISS and something else (i.e. administrative/non-contracted business). If there are employees that only perform contracted ISS included on row 2 the report will need to be returned for correction. If there are wages reported in columns D & E then in theory there should be amounts reported in columns O & P and possibly in column L. Row 3 - Check for reasonableness: Payroll reported here should be for a Group Home or Group Training Home Administrator (a single employee) that performs ISS duties. If the Administrator does not perform ISS then this row should be blank. Row 4 - Check for reasonableness: Payroll reported here should be for a Supported Living or Combined SL/GH/GTH Administrator (a single employee) that performs ISS duties. If the Administrator does not perform ISS then this row should be blank. Review formula in cell C61 to verify that the number of months or quarters are correct. If the number of clients in cell C61 is more than 20 then verify that cell R61 is zero. Every agency needs to have Administrative payroll expenses - verify there is administrative payroll in cell G61 or on Schedule C, line 1. Verify the provider reported payroll taxes in cell O61. If cell P61 is zero verify with the employer that they do not pay for any taxable or non-taxable fringe benefits for their employees.
D10: Schedule C | E10: Verify provider completed questions 1-2. 1. If yes, and there are amounts posted to Schedule G, lines 29-31 verify with the resource manager if purchased professional services was authorized in the client's assessment. 2. If yes, and "Other Method" was selected in 2c, determine if the method described is reasonable. Administrative & Operating Costs (Non-ISS Costs) are not settled and therefore do not need to be analyzed. Verify that an "Agency Type" was selected in any columns (A-C) that have amounts reported. If not return to provider for correction.
D11: Schedule D | E11: Verify line 1 has amounts posted in any column that has a program type selected in columns A-C. Compare to revenues recived on Schedule H, cell AT2; in theory these numbers should equal.
D12: Schedule E | E12: Verify that the agency completed the correct number of Schedule O's. All areas must be completed. Save a copy to the survey folder: S:\Shared_Data\Cost Reimbursement\Surveys\Residential Wage & Turnover results
D13: Schedule F | E13: Health Insurance section must be completed. Line 11 - reported as percentages Line 12 - reported as yes or no Save a copy to the survey folder: S:\Shared_Data\Cost Reimbursement\Surveys\ACA Survey
D14: Schedule G (Settlement) | E14: Lines 1-3: Use the department’s internal reconciliation of contracted days and reimbursements from Schedule H Rate History to verify or revise the program type and/or the amounts reported by the provider. Lines 5-13: Use the departments internal reconciliation "Other Codes" tab to verify or revise the program type and/or the amounts reported by the provider. Lines 15-20 Use the department’s internal reconciliation of contracted days and reimbursements from Schedule H Rate History to verify or revise the professional services type and amount reported. Lines 26-28 Verify that the appropriate program type was selected from the drop down list and verify with the resource manager that purchased professional services is authorized in the client's assessment.
D15: RES tab | E15: Copy & paste the last three rows of Schedule H to the RES tab rows 60-62 to correct the column difference. Copy & paste as values the same last three rows of Schedule H to the RES tab to remove the formulas. Save the file and rename it by adding "Final" after the dash (-) if it is a zero settlement or "Final$" after the dash (-) if there is an amount due. Copy the appropriate RES tab column(s) to the settlement summary tab on the Cost Report Analysis Checklist & Settlement Summary file on sharepoint.
D16: ISS Payroll Verification (Complete section if selected for ISS Payroll review) | E16: Upon accepting the annual cost report, email the provider requesting them to submit their ISS payroll supporting documentation for specified months/quarter and to complete the Provider Employee Data Form. Place all documentation received from the provider in the Payroll Verification sub-folder within the regional Cost Report and Settlement Data folder for the respective year at this location: S:\Shared_Data\Cost Reimbursement\Residential\Residential Cost Report Settlements Using the providers source documents, compare and analyze the Provider Employee Data information to the ISS payroll detail to locate any inconsistencies and to check for reasonableness. Using the departments standardized payroll review worksheet, analyze and compare the ISS payroll detail (source documents) to the amounts reported on Schedule B, including accruals for January and December. Supporting documentation must demonstrate how their detail ties to amounts reported on Schedule B. Review all employees whose job duties are split between ISS and non-ISS/Admin, check for reasonableness. Variances over 2% must be resolved and may require a larger sample to be pulled. If a full year review is warranted, the employee W-2’s and/or ESD reports may be used for further analysis. Enter payroll review data, explanations, and results on the residential tracking log. Notify DDA and section manager when the review is completed, including findings.
D18: Lead/Supervisor Checklist Review | E18: 1. Review all cost report schedules (A-H) and resulting settlement for accuracy, completeness, & reasonableness 2. Confirm the following: a) Schedule G, Line 4, Column C equals Schedule H, cell Y2 plus AA2 b) Schedule G, Line 15, Column C equals Schedule H, cell Z2 c) Schedule G, Lines 5 + 6 + 7 equals "Other Codes" tab procedure codes SA452 plus SA453 (Nurse Delegation) d) Schedule G, Lines 8 + 9 + 10 equals "Other Codes" tab procedure codes SA719 plus SA725 (Staff Add On) 3. Evaluate/examine all ISS payroll review analysis summary files for accuracy, completeness, & reasonableness
B19: (initials) | C19: (Date)

Sheet ReadMe
B2: DDA Residential Programs Cost Report General Guidelines
B4: 1. For 2023, the Administrator Regression table maximums have been increased 2% relative to the increase in the daily rate and covid funds have been reduced from 7.3% to 5.4%, effective January 1, 2023. Four questions have been added to Schedule C and Schedule E has been revised to report staffing on a semiannual basis. The ISS payroll review is still being developed and will be presented once complete.
B6: 2. It is recommended that the cost report preparer refer to the cost reporting instructions, DDA policy 6.04, PowerPoint Presentation and template samples while completing their cost report. Select the link below for Covid reporting requirements.
B7: Covid Reporting Requirements
B9: 3. The completed cost report must be submitted in excel format using the 12/2022 revised cost report template. The cost report schedules (A, B, C, D, E, F, & G) are all in a single file. The completed report is to be emailed to both your resource manager and rate analyst (see below for rate analyst). The department does not accept Cost Report templates from previous years. The current year cost report templates and related materials are available on the web. In addition, cost reports received in PDF or by mail cannot be accepted; only the signed Schedule A is to be scanned as PDF and attached to the email submitting the cost report. Schedule A will need to be recertified each time a cost report or revised cost report is submitted.
B11: 4. Providers are to fill in cells that are formatted white. Cells that are formatted in yellow or grey are locked and cannot be changed. Several places throughout the cost report, providers will select from a drop down list instead of typing in their information. Do not copy and paste while using this form.
B13: 5. Do not include client names, identification numbers, or identifying employee information in the cost report. If you use the optional form, Schedule H - Rate History, do not submit it with your cost report. This form, once complete, will list client names and identification numbers. The form is a separate file from the cost report template and providers have the option of using it to complete their cost report. Providers that choose to use this optional form will need to enter the necessary information throughout the year using their Exhibit C's and COCA's.
B15: 6. On Schedule B, ISS Payroll Expenses, providers must report all payroll costs for staff and eligible Administrators that work both contracted & non-contracted business in an ISS/direct care and/or Administrative capacity to allocate employer paid taxes and benefits, and to determine the percentage of Administrator compensation that can be claimed as ISS, if eligible.
B17: 7. On Schedule C, non-ISS Expenses, agencies are no longer able to allocate expenses between contracted, non-contracted, and administrative expenses. Agencies that need to allocate non-ISS costs will need to do so outside of the cost report. Providers can use the optional Schedule I - Allocations, to allocate expenses that are no longer able to be done within the cost report.
B19: 8. Review the report before submitting to ensure all required information is both accurate and complete. It is also recommended to print preview before printing as some printers allow for different margins or use slightly different font sizes that may cause schedules to not fit as they were designed.
B21: 9. On Schedule A, please include your current contact information for your agency and the cost report preparer, including email addresses.
B23: 10. Each schedule (A through G) is on a separate tab. Move from schedule to schedule by clicking on the appropriate tab. If additional tabs are needed for Schedule E - Residential Staffing, please contact your rates analyst. Optional Schedule H – Rate History and Schedule I – Non-ISS Expenses are for internal use only.
B25: 11. There are several places throughout the schedules where you will find a small red triangle in the upper right corner of a cell. As you pass the mouse cursor over the triangle, an explanation of the information required or relative information for that cell will appear in a comment box.
B27: 12. If you have any trouble or have questions about using the spreadsheet, or if you find any errors in logic, line or column references or anything else that requires attention, please feel free to contact any of the individuals listed below.
B29: IMPORTANT DATES
B30: Extension Requests must be received by March 15 March 31 - Cost Reports Due | C30: April 30 - Extension Due Date
B32: DD Rates Contact Information | C32: Telephone | D32: E-mail address
B33: Ken Callaghan, DDA Rates Manager | C33: (360) 995-2810 | D33: kenneth.callaghan@dshs.wa.gov
B34: Tod Johnson, Analyst - Regions 1 & SOLA | C34: (360) 915-6997 | D34: tod.johnson@dshs.wa.gov
B35: Charlene Hunt, Analyst - Regions 2 & RHC | C35: (360) 725-2441 | D35: charlene.hunt@dshs.wa.gov
B36: Tammy Paulk, Analyst - Region 3 & LSR | C36: (360) 725-2498 | D36: tammy.paulk@dshs.wa.gov

Sheet A - General Info & Cert
B1: SCHEDULE A
B4: PART A - PROVIDER IDENTIFYING INFORMATION
B5: 1. PROVIDER AGENCY NAME | D5: 2. PROVIDER ONE ID
D6: =IF(_M000001="","",VLOOKUP(_M000001,Lists!$A$4:$B$144,2,FALSE)) -> 
B7: 3. PROVIDER MAILING ADDRESS | C7: 4. CITY, STATE, ZIP | D7: 5. PROVIDER PHONE NUMBER
B9: 6. ADMINISTRATOR NAME | C9: 7. ADMINISTRATOR E-MAIL | D9: 8. ADMINISTRATOR PHONE NUMBER
B11: 9. HOME OFFICE/CORPORATE NAME (please indicate if NONE or SAME AS ABOVE)
B13: 10. HOME OFFICE MAILING ADDRESS | C13: 11. CITY, STATE, ZIP | D13: 12. HOME OFFICE PHONE NUMBER
B15: 13. COST REPORT PREPARER | C15: 14. FIRM NAME
B17: 15. REPORT CONTACT INDIVIDUAL(S) | C17: 16. CONTACT PHONE NUMBER | D17: 17. CONTACT EMAIL
B19: 18. COST REPORT PERIOD | D19: 19. FEDERAL ID NUMBER(S)
B20: 2023-01-01 | C20: 2023-12-31
B21: FROM: | C21: TO:
B22: PART B. - CERTIFICATION
B23: MISREPRESENTATION OR FALSIFICATION OF ANY INFORMATION CONTAINED IN THIS COST REPORT MAY BE PUNISHABLE BY FINE AND/OR IMPRISONMENT UNDER STATE OR FEDERAL LAW
C24: CERTIFICATION
B25: I HEREBY CERTIFY under penalty of perjury that I have read the above statement and have examined the accompanying cost report and supporting schedules prepared for:
C27: (Provider Name)
B28: and I attest, it is a true, correct and complete representation of actual costs related to client supports prepared in accordance with applicable instructions provided by DDA, except as noted.
C30: PERSON SIGNING MUST HAVE AUTHORITY TO BIND THE PROVIDER LISTED
C32: TITLE | D32: DATE
B35: DSHS/DDA Schedule A (Rev. 12/2022)

Sheet B - ISS Payroll Expenses
B1: SCHEDULE B
D3: MONTHLY OR QUARTERLY PAYROLL REPORTING | T3: =_M000001 -> 0
T4: PROVIDER NAME
C10: Reporting Period (Select from drop down list) | D10: PROVIDER MUST MAINTAIN SUPPORTING PAYROLL RECORDS FOR AMOUNTS REPORTED EACH MONTH/QUARTER (BY EMPLOYEE) - AVAILABLE UPON REQUEST
B11: COL. A | C11: COL. B | D11: COL. C | E11: COL. D | F11: COL. E | G11: COL. F | H11: COL. G | I11: COL. H | J11: COL. I | K11: COL. J | L11: COL. K | M11: COL. L | N11: COL. M | O11: COL. N | P11: COL. O | Q11: COL. P | R11: COL. Q | S11: COL. R | T11: COL. S | U11: COL. T
B12: MONTH / QUARTER | C12: EMPLOYEE TYPE | D12: ISS FTE'S | E12: ISS GROSS PAYROLL FOR STAFF (REGULAR TIME) | F12: ISS GROSS PAYROLL FOR STAFF (OVERTIME) | G12: ISS % OF TOTAL GROSS PAYROLL | H12: ADMINISTRATIVE/ NON-ISS GROSS PAYROLL FOR STAFF (REGULAR TIME) | I12: ADMINISTRATIVE/ NON-ISS GROSS PAYROLL FOR STAFF (OVERTIME) | J12: ADMINISTRATIVE/ NON-ISS % OF TOTAL GROSS PARYOLL | K12: GROSS PAYROLL FOR NON-CONTRACTED BUSINESS (REGULAR & OT) | L12: NON-CONTRACTED % OF TOTAL GROSS PAYROLL | M12: GROSS PAYROLL FOR PAID TIME OFF (HOLIDAYS, VACATION &/OR SICK LEAVE) | N12: GROSS PAYROLL OTHER COMPENSATION | O12: TOTAL MONTHLY GROSS PAYROLL | P12: TOTAL EMPLOYER PAID PAYROLL TAXES (SOCIAL SECURITY & MEDICARE, FUTA, SUTA, L&I) & ISS PORTION OF B&O TAXES | Q12: TOTAL EMPLOYER PAID TAXABLE & NON-TAXABLE FRINGE BENEFITS (AS DESCRIBED BY THE IRS) | R12: TOTAL MONTHLY GROSS PAYROLL INCLUDING EMPLOYER PAID TAXES & BENEFITS | S12: TOTAL ISS PAYROLL COSTS | T12: TOTAL NON-ISS PAYROLL COSTS | U12: TOTAL NON-CONTRACTED PAYROLL COSTS
A13: 1 | B13: JANUARY | C13: ISS & PROFESSIONAL SERVICES STAFF (CONTRACTED ISS JOB DUTIES ONLY) | D13: =ROUNDDOWN((E13+E14)/VLOOKUP('Administrator Regression Table'!$P$1,'Administrator Regression Table'!$M$1:$N$9,2),0) ->  | E13: 0 | F13: 0 | G13: =IF((E13+F13)<=0,0,SUM(E13+F13)/SUM(E13+F13+H13+I13+K13)) -> 0 | H13: 0 | I13: 0 | J13: =IF((H13+I13)<=0,0,SUM(H13+I13)/SUM(E13+F13+H13+I13+K13)) -> 0 | K13: 0 | L13: =IF(K13<=0,0,K13/SUM(E13+F13+H13+I13+K13)) -> 0 | M13: 0 | N13: 0 | O13: =SUM(E13+F13+H13+I13+M13+N13+K13) -> 0 | P13: 0 | Q13: 0 | R13: =SUM(O13:Q13) -> 0 | S13: =ROUND(SUM(E13+F13),2)+ROUND(SUM(M13+N13+P13+Q13)*G13,2) -> 0 | T13: 0 | U13: =K13+ROUND(SUM(M13+N13+P13+Q13)*L13,2) -> 0
A14: 2 | B14: JANUARY | C14: ISS & ADMINISTRATIVE OR NON-CONTRACTED STAFF (STAFF PERFORMS CONTRACTED & NON-CONTRACTED AND/OR ADMINSTRATIVE WORK) | E14: 0 | F14: 0 | G14: =IF((E14+F14)<=0,0,SUM(E14+F14)/SUM(E14+F14+H14+I14+K14)) -> 0 | H14: 0 | I14: 0 | J14: =IF((H14+I14)<=0,0,SUM(H14+I14)/SUM(E14+F14+H14+I14+K14)) -> 0 | K14: 0 | L14: =IF(K14<=0,0,K14/SUM(E14+F14+H14+I14+K14)) -> 0 | M14: 0 | N14: 0 | O14: =SUM(E14+F14+H14+I14+M14+N14+K14) -> 0 | P14: 0 | Q14: 0 | R14: =SUM(O14:Q14) -> 0 | S14: =ROUND(SUM(E14+F14),2)+ROUND(SUM(M14+N14+P14+Q14)*G14,2) -> 0 | T14: =ROUND(SUM(H14+I14),2)+ROUND(SUM(M14+N14+P14+Q14)*J14,2) -> 0 | U14: =K14+ROUND(SUM(M14+N14+P14+Q14)*L14,2) -> 0
A15: 3 | B15: JANUARY | C15: GH ONLY - ADMINISTRATOR PAYROLL | E15: 0 | F15: 0 | G15: =IF((E15+F15)<=0,0,SUM(E15+F15)/SUM(E15+F15+H15+I15+K15)) -> 0 | H15: 0 | I15: 0 | J15: =IF((H15+I15)<=0,0,SUM(H15+I15)/SUM(E15+F15+H15+I15+K15)) -> 0 | K15: 0 | L15: =IF(K15<=0,0,K15/SUM(E15+F15+H15+I15+K15)) -> 0 | M15: 0 | N15: 0 | O15: =SUM(E15+F15+H15+I15+M15+N15+K15) -> 0 | P15: 0 | Q15: 0 | R15: =SUM(O15:Q15) -> 0 | S15: =ROUND(SUM(E15+F15),2)+ROUND(SUM(M15+N15+P15+Q15)*G15,2) -> 0 | T15: =ROUND(SUM(H15+I15),2)+ROUND(SUM(M15+N15+P15+Q15)*J15,2) -> 0 | U15: =K15+ROUND(SUM(M15+N15+P15+Q15)*L15,2) -> 0
A16: 4 | B16: JANUARY | C16: ADMINISTRATOR ISS PAYROLL FOR SL & COMBINED SL/GH AGENCIES WITH 20 OR FEWER ISS FTE'S | D16: =SUM(D13:D14) ->  | E16: 0 | F16: 0 | G16: =IF((E16+F16)<=0,0,SUM(E16+F16)/SUM(E16+F16+H16+I16+K16)) -> 0 | H16: 0 | I16: 0 | J16: =IF((H16+I16)<=0,0,SUM(H16+I16)/SUM(E16+F16+H16+I16+K16)) -> 0 | K16: 0 | L16: =IF(K16<=0,0,K16/SUM(E16+F16+H16+I16+K16)) -> 0 | M16: 0 | N16: 0 | O16: =SUM(E16+F16+H16+I16+M16+N16+K16) -> 0 | P16: 0 | Q16: 0 | R16: =SUM(O16:Q16) -> 0 | S16: =IF(G16=0,0,IF((M16+N16+P16+Q16)*G16+(E16+F16)<(HLOOKUP('Administrator Regression Table'!$Q$1,'Administrator Regression Table'!$R$1:$U$63,15)*G16),((M16+N16+P16+Q16)*G16+(E16+F16)),(HLOOKUP('Administrator Regression Table'!$Q$1,'Administrator Regression Table'!$R$1:$U$63,15)*G16))) -> 0 | T16: =R16-U16-S16 -> 0 | U16: =K16+ROUND(SUM(M16+N16+P16+Q16)*L16,2) -> 0
A17: 5 | B17: JANUARY TOTAL | E17: =SUM(E13:E16) -> 0 | F17: =SUM(F13:F16) -> 0 | H17: =SUM(H13:H16) -> 0 | I17: =SUM(I13:I16) -> 0 | K17: =SUM(K13:K16) -> 0 | M17: =SUM(M13:M16) -> 0 | N17: 0 | O17: 0 | P17: 0 | Q17: 0 | R17: 0 | S17: 0 | T17: 0 | U17: 0
A18: 6 | B18: FEBRUARY | C18: ISS & PROFESSIONAL SERVICES STAFF (CONTRACTED ISS JOB DUTIES ONLY) | D18: =ROUNDDOWN((E18+E19)/VLOOKUP('Administrator Regression Table'!$P$1,'Administrator Regression Table'!$M$1:$N$9,2),0) ->  | E18: 0 | F18: 0 | G18: =IF((E18+F18)<=0,0,SUM(E18+F18)/SUM(E18+F18+H18+I18+K18)) -> 0 | H18: 0 | I18: 0 | J18: =IF((H18+I18)<=0,0,SUM(H18+I18)/SUM(E18+F18+H18+I18+K18)) -> 0 | K18: 0 | L18: =IF(K18<=0,0,K18/SUM(E18+F18+H18+I18+K18)) -> 0 | M18: 0 | N18: 0 | O18: =SUM(E18+F18+H18+I18+M18+N18+K18) -> 0 | P18: 0 | Q18: 0 | R18: =SUM(O18:Q18) -> 0 | S18: =ROUND(SUM(E18+F18),2)+ROUND(SUM(M18+N18+P18+Q18)*G18,2) -> 0 | T18: 0 | U18: =K18+ROUND(SUM(M18+N18+P18+Q18)*L18,2) -> 0
A19: 7 | B19: FEBRUARY | C19: ISS & ADMINISTRATIVE OR NON-CONTRACTED STAFF (STAFF PERFORMS CONTRACTED & NON-CONTRACTED AND/OR ADMINSTRATIVE WORK) | E19: 0 | F19: 0 | G19: =IF((E19+F19)<=0,0,SUM(E19+F19)/SUM(E19+F19+H19+I19+K19)) -> 0 | H19: 0 | I19: 0 | J19: =IF((H19+I19)<=0,0,SUM(H19+I19)/SUM(E19+F19+H19+I19+K19)) -> 0 | K19: 0 | L19: =IF(K19<=0,0,K19/SUM(E19+F19+H19+I19+K19)) -> 0 | M19: 0 | N19: 0 | O19: =SUM(E19+F19+H19+I19+M19+N19+K19) -> 0 | P19: 0 | Q19: 0 | R19: =SUM(O19:Q19) -> 0 | S19: =ROUND(SUM(E19+F19),2)+ROUND(SUM(M19+N19+P19+Q19)*G19,2) -> 0 | T19: =ROUND(SUM(H19+I19),2)+ROUND(SUM(M19+N19+P19+Q19)*J19,2) -> 0 | U19: =K19+ROUND(SUM(M19+N19+P19+Q19)*L19,2) -> 0
A20: 8 | B20: FEBRUARY | C20: GH ONLY - ADMINISTRATOR PAYROLL | E20: 0 | F20: 0 | G20: =IF((E20+F20)<=0,0,SUM(E20+F20)/SUM(E20+F20+H20+I20+K20)) -> 0 | H20: 0 | I20: 0 | J20: =IF((H20+I20)<=0,0,SUM(H20+I20)/SUM(E20+F20+H20+I20+K20)) -> 0 | K20: 0 | L20: =IF(K20<=0,0,K20/SUM(E20+F20+H20+I20+K20)) -> 0 | M20: 0 | N20: 0 | O20: =SUM(E20+F20+H20+I20+M20+N20+K20) -> 0 | P20: 0 | Q20: 0 | R20: =SUM(O20:Q20) -> 0 | S20: =ROUND(SUM(E20+F20),2)+ROUND(SUM(M20+N20+P20+Q20)*G20,2) -> 0 | T20: =ROUND(SUM(H20+I20),2)+ROUND(SUM(M20+N20+P20+Q20)*J20,2) -> 0 | U20: =K20+ROUND(SUM(M20+N20+P20+Q20)*L20,2) -> 0
A21: 9 | B21: FEBRUARY | C21: ADMINISTRATOR ISS PAYROLL FOR SL & COMBINED SL/GH AGENCIES WITH 20 OR FEWER ISS FTE'S | D21: =SUM(D18:D19) ->  | E21: 0 | F21: 0 | G21: =IF((E21+F21)<=0,0,SUM(E21+F21)/SUM(E21+F21+H21+I21+K21)) -> 0 | H21: 0 | I21: 0 | J21: =IF((H21+I21)<=0,0,SUM(H21+I21)/SUM(E21+F21+H21+I21+K21)) -> 0 | K21: 0 | L21: =IF(K21<=0,0,K21/SUM(E21+F21+H21+I21+K21)) -> 0 | M21: 0 | N21: 0 | O21: =SUM(E21+F21+H21+I21+M21+N21+K21) -> 0 | P21: 0 | Q21: 0 | R21: =SUM(O21:Q21) -> 0 | S21: =IF(G21=0,0,IF((M21+N21+P21+Q21)*G21+(E21+F21)<(HLOOKUP('Administrator Regression Table'!$Q$1,'Administrator Regression Table'!$R$1:$U$63,19)*G21),((M21+N21+P21+Q21)*G21+(E21+F21)),(HLOOKUP('Administrator Regression Table'!$Q$1,'Administrator Regression Table'!$R$1:$U$63,19)*G21))) -> 0 | T21: =R21-U21-S21 -> 0 | U21: =K21+ROUND(SUM(M21+N21+P21+Q21)*L21,2) -> 0
A22: 10 | B22: FEBRUARY TOTAL | E22: =SUM(E18:E21) -> 0 | F22: =SUM(F18:F21) -> 0 | H22: =SUM(H18:H21) -> 0 | I22: =SUM(I18:I21) -> 0 | K22: =SUM(K18:K21) -> 0 | M22: =SUM(M18:M21) -> 0 | N22: 0 | O22: 0 | P22: 0 | Q22: 0 | R22: 0 | S22: 0 | T22: 0 | U22: 0
A23: 11 | B23: MARCH / 1ST QUARTER | C23: ISS & PROFESSIONAL SERVICES STAFF (CONTRACTED ISS JOB DUTIES ONLY) | D23: =ROUNDDOWN((E23+E24)/VLOOKUP('Administrator Regression Table'!$P$1,'Administrator Regression Table'!$M$1:$N$9,2),0) ->  | E23: 0 | F23: 0 | G23: =IF((E23+F23)<=0,0,SUM(E23+F23)/SUM(E23+F23+H23+I23+K23)) -> 0 | H23: 0 | I23: 0 | J23: =IF((H23+I23)<=0,0,SUM(H23+I23)/SUM(E23+F23+H23+I23+K23)) -> 0 | K23: 0 | L23: =IF(K23<=0,0,K23/SUM(E23+F23+H23+I23+K23)) -> 0 | M23: 0 | N23: 0 | O23: =SUM(E23+F23+H23+I23+M23+N23+K23) -> 0 | P23: 0 | Q23: 0 | R23: =SUM(O23:Q23) -> 0 | S23: =ROUND(SUM(E23+F23),2)+ROUND(SUM(M23+N23+P23+Q23)*G23,2) -> 0 | T23: 0 | U23: =K23+ROUND(SUM(M23+N23+P23+Q23)*L23,2) -> 0
A24: 12 | B24: MARCH / 1ST QUARTER | C24: ISS & ADMINISTRATIVE OR NON-CONTRACTED STAFF (STAFF PERFORMS CONTRACTED & NON-CONTRACTED AND/OR ADMINSTRATIVE WORK) | E24: 0 | F24: 0 | G24: =IF((E24+F24)<=0,0,SUM(E24+F24)/SUM(E24+F24+H24+I24+K24)) -> 0 | H24: 0 | I24: 0 | J24: =IF((H24+I24)<=0,0,SUM(H24+I24)/SUM(E24+F24+H24+I24+K24)) -> 0 | K24: 0 | L24: =IF(K24<=0,0,K24/SUM(E24+F24+H24+I24+K24)) -> 0 | M24: 0 | N24: 0 | O24: =SUM(E24+F24+H24+I24+M24+N24+K24) -> 0 | P24: 0 | Q24: 0 | R24: =SUM(O24:Q24) -> 0 | S24: =ROUND(SUM(E24+F24),2)+ROUND(SUM(M24+N24+P24+Q24)*G24,2) -> 0 | T24: =ROUND(SUM(H24+I24),2)+ROUND(SUM(M24+N24+P24+Q24)*J24,2) -> 0 | U24: =K24+ROUND(SUM(M24+N24+P24+Q24)*L24,2) -> 0
A25: 13 | B25: MARCH / 1ST QUARTER | C25: GH ONLY - ADMINISTRATOR PAYROLL | E25: 0 | F25: 0 | G25: =IF((E25+F25)<=0,0,SUM(E25+F25)/SUM(E25+F25+H25+I25+K25)) -> 0 | H25: 0 | I25: 0 | J25: =IF((H25+I25)<=0,0,SUM(H25+I25)/SUM(E25+F25+H25+I25+K25)) -> 0 | K25: 0 | L25: =IF(K25<=0,0,K25/SUM(E25+F25+H25+I25+K25)) -> 0 | M25: 0 | N25: 0 | O25: =SUM(E25+F25+H25+I25+M25+N25+K25) -> 0 | P25: 0 | Q25: 0 | R25: =SUM(O25:Q25) -> 0 | S25: =ROUND(SUM(E25+F25),2)+ROUND(SUM(M25+N25+P25+Q25)*G25,2) -> 0 | T25: =ROUND(SUM(H25+I25),2)+ROUND(SUM(M25+N25+P25+Q25)*J25,2) -> 0 | U25: =K25+ROUND(SUM(M25+N25+P25+Q25)*L25,2) -> 0
A26: 14 | B26: MARCH / 1ST QUARTER | C26: ADMINISTRATOR ISS PAYROLL FOR SL & COMBINED SL/GH AGENCIES WITH 20 OR FEWER ISS FTE'S | D26: =SUM(D23:D24) ->  | E26: 0 | F26: 0 | G26: =IF((E26+F26)<=0,0,SUM(E26+F26)/SUM(E26+F26+H26+I26+K26)) -> 0 | H26: 0 | I26: 0 | J26: =IF((H26+I26)<=0,0,SUM(H26+I26)/SUM(E26+F26+H26+I26+K26)) -> 0 | K26: 0 | L26: =IF(K26<=0,0,K26/SUM(E26+F26+H26+I26+K26)) -> 0 | M26: 0 | N26: 0 | O26: =SUM(E26+F26+H26+I26+M26+N26+K26) -> 0 | P26: 0 | Q26: 0 | R26: =SUM(O26:Q26) -> 0 | S26: =IF(G26=0,0,IF((M26+N26+P26+Q26)*G26+(E26+F26)<(HLOOKUP('Administrator Regression Table'!$Q$1,'Administrator Regression Table'!$R$1:$U$63,23)*G26),((M26+N26+P26+Q26)*G26+(E26+F26)),(HLOOKUP('Administrator Regression Table'!$Q$1,'Administrator Regression Table'!$R$1:$U$63,23)*G26))) -> 0 | T26: =R26-U26-S26 -> 0 | U26: =K26+ROUND(SUM(M26+N26+P26+Q26)*L26,2) -> 0
A27: 15 | B27: MARCH TOTAL | E27: =SUM(E23:E26) -> 0 | F27: =SUM(F23:F26) -> 0 | H27: =SUM(H23:H26) -> 0 | I27: =SUM(I23:I26) -> 0 | K27: =SUM(K23:K26) -> 0 | M27: =SUM(M23:M26) -> 0 | N27: 0 | O27: 0 | P27: 0 | Q27: 0 | R27: 0 | S27: 0 | T27: 0 | U27: 0
A28: 16 | B28: APRIL | C28: ISS & PROFESSIONAL SERVICES STAFF (CONTRACTED ISS JOB DUTIES ONLY) | D28: =ROUNDDOWN((E28+E29)/VLOOKUP('Administrator Regression Table'!$P$1,'Administrator Regression Table'!$M$1:$N$9,2),0) ->  | E28: 0 | F28: 0 | G28: =IF((E28+F28)<=0,0,SUM(E28+F28)/SUM(E28+F28+H28+I28+K28)) -> 0 | H28: 0 | I28: 0 | J28: =IF((H28+I28)<=0,0,SUM(H28+I28)/SUM(E28+F28+H28+I28+K28)) -> 0 | K28: 0 | L28: =IF(K28<=0,0,K28/SUM(E28+F28+H28+I28+K28)) -> 0 | M28: 0 | N28: 0 | O28: =SUM(E28+F28+H28+I28+M28+N28+K28) -> 0 | P28: 0 | Q28: 0 | R28: =SUM(O28:Q28) -> 0 | S28: =ROUND(SUM(E28+F28),2)+ROUND(SUM(M28+N28+P28+Q28)*G28,2) -> 0 | T28: 0 | U28: =K28+ROUND(SUM(M28+N28+P28+Q28)*L28,2) -> 0
A29: 17 | B29: APRIL | C29: ISS & ADMINISTRATIVE OR NON-CONTRACTED STAFF (STAFF PERFORMS CONTRACTED & NON-CONTRACTED AND/OR ADMINSTRATIVE WORK) | E29: 0 | F29: 0 | G29: =IF((E29+F29)<=0,0,SUM(E29+F29)/SUM(E29+F29+H29+I29+K29)) -> 0 | H29: 0 | I29: 0 | J29: =IF((H29+I29)<=0,0,SUM(H29+I29)/SUM(E29+F29+H29+I29+K29)) -> 0 | K29: 0 | L29: =IF(K29<=0,0,K29/SUM(E29+F29+H29+I29+K29)) -> 0 | M29: 0 | N29: 0 | O29: =SUM(E29+F29+H29+I29+M29+N29+K29) -> 0 | P29: 0 | Q29: 0 | R29: =SUM(O29:Q29) -> 0 | S29: =ROUND(SUM(E29+F29),2)+ROUND(SUM(M29+N29+P29+Q29)*G29,2) -> 0 | T29: =ROUND(SUM(H29+I29),2)+ROUND(SUM(M29+N29+P29+Q29)*J29,2) -> 0 | U29: =K29+ROUND(SUM(M29+N29+P29+Q29)*L29,2) -> 0
A30: 18 | B30: APRIL | C30: GH ONLY - ADMINISTRATOR PAYROLL | E30: 0 | F30: 0 | G30: =IF((E30+F30)<=0,0,SUM(E30+F30)/SUM(E30+F30+H30+I30+K30)) -> 0 | H30: 0 | I30: 0 | J30: =IF((H30+I30)<=0,0,SUM(H30+I30)/SUM(E30+F30+H30+I30+K30)) -> 0 | K30: 0 | L30: =IF(K30<=0,0,K30/SUM(E30+F30+H30+I30+K30)) -> 0 | M30: 0 | N30: 0 | O30: =SUM(E30+F30+H30+I30+M30+N30+K30) -> 0 | P30: 0 | Q30: 0 | R30: =SUM(O30:Q30) -> 0 | S30: =ROUND(SUM(E30+F30),2)+ROUND(SUM(M30+N30+P30+Q30)*G30,2) -> 0 | T30: =ROUND(SUM(H30+I30),2)+ROUND(SUM(M30+N30+P30+Q30)*J30,2) -> 0 | U30: =K30+ROUND(SUM(M30+N30+P30+Q30)*L30,2) -> 0
A31: 19 | B31: APRIL | C31: ADMINISTRATOR ISS PAYROLL FOR SL & COMBINED SL/GH AGENCIES WITH 20 OR FEWER ISS FTE'S | D31: =SUM(D28:D29) ->  | E31: 0 | F31: 0 | G31: =IF((E31+F31)<=0,0,SUM(E31+F31)/SUM(E31+F31+H31+I31+K31)) -> 0 | H31: 0 | I31: 0 | J31: =IF((H31+I31)<=0,0,SUM(H31+I31)/SUM(E31+F31+H31+I31+K31)) -> 0 | K31: 0 | L31: =IF(K31<=0,0,K31/SUM(E31+F31+H31+I31+K31)) -> 0 | M31: 0 | N31: 0 | O31: =SUM(E31+F31+H31+I31+M31+N31+K31) -> 0 | P31: 0 | Q31: 0 | R31: =SUM(O31:Q31) -> 0 | S31: =IF(G31=0,0,IF((M31+N31+P31+Q31)*G31+(E31+F31)<(HLOOKUP('Administrator Regression Table'!$Q$1,'Administrator Regression Table'!$R$1:$U$63,27)*G31),((M31+N31+P31+Q31)*G31+(E31+F31)),(HLOOKUP('Administrator Regression Table'!$Q$1,'Administrator Regression Table'!$R$1:$U$63,27)*G31))) -> 0 | T31: =R31-U31-S31 -> 0 | U31: =K31+ROUND(SUM(M31+N31+P31+Q31)*L31,2) -> 0
A32: 20 | B32: APRIL TOTAL | E32: =SUM(E28:E31) -> 0 | F32: =SUM(F28:F31) -> 0 | H32: =SUM(H28:H31) -> 0 | I32: =SUM(I28:I31) -> 0 | K32: =SUM(K28:K31) -> 0 | M32: =SUM(M28:M31) -> 0 | N32: 0 | O32: 0 | P32: 0 | Q32: 0 | R32: 0 | S32: 0 | T32: 0 | U32: 0
A33: 21 | B33: MAY | C33: ISS & PROFESSIONAL SERVICES STAFF (CONTRACTED ISS JOB DUTIES ONLY) | D33: =ROUNDDOWN((E33+E34)/VLOOKUP('Administrator Regression Table'!$P$1,'Administrator Regression Table'!$M$1:$N$9,2),0) ->  | E33: 0 | F33: 0 | G33: =IF((E33+F33)<=0,0,SUM(E33+F33)/SUM(E33+F33+H33+I33+K33)) -> 0 | H33: 0 | I33: 0 | J33: =IF((H33+I33)<=0,0,SUM(H33+I33)/SUM(E33+F33+H33+I33+K33)) -> 0 | K33: 0 | L33: =IF(K33<=0,0,K33/SUM(E33+F33+H33+I33+K33)) -> 0 | M33: 0 | N33: 0 | O33: =SUM(E33+F33+H33+I33+M33+N33+K33) -> 0 | P33: 0 | Q33: 0 | R33: =SUM(O33:Q33) -> 0 | S33: =ROUND(SUM(E33+F33),2)+ROUND(SUM(M33+N33+P33+Q33)*G33,2) -> 0 | T33: 0 | U33: =K33+ROUND(SUM(M33+N33+P33+Q33)*L33,2) -> 0
A34: 22 | B34: MAY | C34: ISS & ADMINISTRATIVE OR NON-CONTRACTED STAFF (STAFF PERFORMS CONTRACTED & NON-CONTRACTED AND/OR ADMINSTRATIVE WORK) | E34: 0 | F34: 0 | G34: =IF((E34+F34)<=0,0,SUM(E34+F34)/SUM(E34+F34+H34+I34+K34)) -> 0 | H34: 0 | I34: 0 | J34: =IF((H34+I34)<=0,0,SUM(H34+I34)/SUM(E34+F34+H34+I34+K34)) -> 0 | K34: 0 | L34: =IF(K34<=0,0,K34/SUM(E34+F34+H34+I34+K34)) -> 0 | M34: 0 | N34: 0 | O34: =SUM(E34+F34+H34+I34+M34+N34+K34) -> 0 | P34: 0 | Q34: 0 | R34: =SUM(O34:Q34) -> 0 | S34: =ROUND(SUM(E34+F34),2)+ROUND(SUM(M34+N34+P34+Q34)*G34,2) -> 0 | T34: =ROUND(SUM(H34+I34),2)+ROUND(SUM(M34+N34+P34+Q34)*J34,2) -> 0 | U34: =K34+ROUND(SUM(M34+N34+P34+Q34)*L34,2) -> 0
A35: 23 | B35: MAY | C35: GH ONLY - ADMINISTRATOR PAYROLL | E35: 0 | F35: 0 | G35: =IF((E35+F35)<=0,0,SUM(E35+F35)/SUM(E35+F35+H35+I35+K35)) -> 0 | H35: 0 | I35: 0 | J35: =IF((H35+I35)<=0,0,SUM(H35+I35)/SUM(E35+F35+H35+I35+K35)) -> 0 | K35: 0 | L35: =IF(K35<=0,0,K35/SUM(E35+F35+H35+I35+K35)) -> 0 | M35: 0 | N35: 0 | O35: =SUM(E35+F35+H35+I35+M35+N35+K35) -> 0 | P35: 0 | Q35: 0 | R35: =SUM(O35:Q35) -> 0 | S35: =ROUND(SUM(E35+F35),2)+ROUND(SUM(M35+N35+P35+Q35)*G35,2) -> 0 | T35: =ROUND(SUM(H35+I35),2)+ROUND(SUM(M35+N35+P35+Q35)*J35,2) -> 0 | U35: =K35+ROUND(SUM(M35+N35+P35+Q35)*L35,2) -> 0
A36: 24 | B36: MAY | C36: ADMINISTRATOR ISS PAYROLL FOR SL & COMBINED SL/GH AGENCIES WITH 20 OR FEWER ISS FTE'S | D36: =SUM(D33:D34) ->  | E36: 0 | F36: 0 | G36: =IF((E36+F36)<=0,0,SUM(E36+F36)/SUM(E36+F36+H36+I36+K36)) -> 0 | H36: 0 | I36: 0 | J36: =IF((H36+I36)<=0,0,SUM(H36+I36)/SUM(E36+F36+H36+I36+K36)) -> 0 | K36: 0 | L36: =IF(K36<=0,0,K36/SUM(E36+F36+H36+I36+K36)) -> 0 | M36: 0 | N36: 0 | O36: =SUM(E36+F36+H36+I36+M36+N36+K36) -> 0 | P36: 0 | Q36: 0 | R36: =SUM(O36:Q36) -> 0 | S36: =IF(G36=0,0,IF((M36+N36+P36+Q36)*G36+(E36+F36)<(HLOOKUP('Administrator Regression Table'!$Q$1,'Administrator Regression Table'!$R$1:$U$63,31)*G36),((M36+N36+P36+Q36)*G36+(E36+F36)),(HLOOKUP('Administrator Regression Table'!$Q$1,'Administrator Regression Table'!$R$1:$U$63,31)*G36))) -> 0 | T36: =R36-U36-S36 -> 0 | U36: =K36+ROUND(SUM(M36+N36+P36+Q36)*L36,2) -> 0
A37: 25 | B37: MAY TOTAL | E37: =SUM(E33:E36) -> 0 | F37: =SUM(F33:F36) -> 0 | H37: =SUM(H33:H36) -> 0 | I37: =SUM(I33:I36) -> 0 | K37: =SUM(K33:K36) -> 0 | M37: =SUM(M33:M36) -> 0 | N37: 0 | O37: 0 | P37: 0 | Q37: 0 | R37: 0 | S37: 0 | T37: 0 | U37: 0
A38: 26 | B38: JUNE / 2ND QUARTER | C38: ISS & PROFESSIONAL SERVICES STAFF (CONTRACTED ISS JOB DUTIES ONLY) | D38: =ROUNDDOWN((E38+E39)/VLOOKUP('Administrator Regression Table'!$P$1,'Administrator Regression Table'!$M$1:$N$9,2),0) ->  | E38: 0 | F38: 0 | G38: =IF((E38+F38)<=0,0,SUM(E38+F38)/SUM(E38+F38+H38+I38+K38)) -> 0 | H38: 0 | I38: 0 | J38: =IF((H38+I38)<=0,0,SUM(H38+I38)/SUM(E38+F38+H38+I38+K38)) -> 0 | K38: 0 | L38: =IF(K38<=0,0,K38/SUM(E38+F38+H38+I38+K38)) -> 0 | M38: 0 | N38: 0 | O38: =SUM(E38+F38+H38+I38+M38+N38+K38) -> 0 | P38: 0 | Q38: 0 | R38: =SUM(O38:Q38) -> 0 | S38: =ROUND(SUM(E38+F38),2)+ROUND(SUM(M38+N38+P38+Q38)*G38,2) -> 0 | T38: 0 | U38: =K38+ROUND(SUM(M38+N38+P38+Q38)*L38,2) -> 0
A39: 27 | B39: JUNE / 2ND QUARTER | C39: ISS & ADMINISTRATIVE OR NON-CONTRACTED STAFF (STAFF PERFORMS CONTRACTED & NON-CONTRACTED AND/OR ADMINSTRATIVE WORK) | E39: 0 | F39: 0 | G39: =IF((E39+F39)<=0,0,SUM(E39+F39)/SUM(E39+F39+H39+I39+K39)) -> 0 | H39: 0 | I39: 0 | J39: =IF((H39+I39)<=0,0,SUM(H39+I39)/SUM(E39+F39+H39+I39+K39)) -> 0 | K39: 0 | L39: =IF(K39<=0,0,K39/SUM(E39+F39+H39+I39+K39)) -> 0 | M39: 0 | N39: 0 | O39: =SUM(E39+F39+H39+I39+M39+N39+K39) -> 0 | P39: 0 | Q39: 0 | R39: =SUM(O39:Q39) -> 0 | S39: =ROUND(SUM(E39+F39),2)+ROUND(SUM(M39+N39+P39+Q39)*G39,2) -> 0 | T39: =ROUND(SUM(H39+I39),2)+ROUND(SUM(M39+N39+P39+Q39)*J39,2) -> 0 | U39: =K39+ROUND(SUM(M39+N39+P39+Q39)*L39,2) -> 0
A40: 28 | B40: JUNE / 2ND QUARTER | C40: GH ONLY - ADMINISTRATOR PAYROLL | E40: 0 | F40: 0 | G40: =IF((E40+F40)<=0,0,SUM(E40+F40)/SUM(E40+F40+H40+I40+K40)) -> 0 | H40: 0 | I40: 0 | J40: =IF((H40+I40)<=0,0,SUM(H40+I40)/SUM(E40+F40+H40+I40+K40)) -> 0 | K40: 0 | L40: =IF(K40<=0,0,K40/SUM(E40+F40+H40+I40+K40)) -> 0 | M40: 0 | N40: 0 | O40: =SUM(E40+F40+H40+I40+M40+N40+K40) -> 0 | P40: 0 | Q40: 0 | R40: =SUM(O40:Q40) -> 0 | S40: =ROUND(SUM(E40+F40),2)+ROUND(SUM(M40+N40+P40+Q40)*G40,2) -> 0 | T40: =ROUND(SUM(H40+I40),2)+ROUND(SUM(M40+N40+P40+Q40)*J40,2) -> 0 | U40: =K40+ROUND(SUM(M40+N40+P40+Q40)*L40,2) -> 0
A41: 29 | B41: JUNE / 2ND QUARTER | C41: ADMINISTRATOR ISS PAYROLL FOR SL & COMBINED SL/GH AGENCIES WITH 20 OR FEWER ISS FTE'S | D41: =SUM(D38:D39) ->  | E41: 0 | F41: 0 | G41: =IF((E41+F41)<=0,0,SUM(E41+F41)/SUM(E41+F41+H41+I41+K41)) -> 0 | H41: 0 | I41: 0 | J41: =IF((H41+I41)<=0,0,SUM(H41+I41)/SUM(E41+F41+H41+I41+K41)) -> 0 | K41: 0 | L41: =IF(K41<=0,0,K41/SUM(E41+F41+H41+I41+K41)) -> 0 | M41: 0 | N41: 0 | O41: =SUM(E41+F41+H41+I41+M41+N41+K41) -> 0 | P41: 0 | Q41: 0 | R41: =SUM(O41:Q41) -> 0 | S41: =IF(G41=0,0,IF((M41+N41+P41+Q41)*G41+(E41+F41)<(HLOOKUP('Administrator Regression Table'!$Q$1,'Administrator Regression Table'!$R$1:$U$63,35)*G41),((M41+N41+P41+Q41)*G41+(E41+F41)),(HLOOKUP('Administrator Regression Table'!$Q$1,'Administrator Regression Table'!$R$1:$U$63,35)*G41))) -> 0 | T41: =R41-U41-S41 -> 0 | U41: =K41+ROUND(SUM(M41+N41+P41+Q41)*L41,2) -> 0
A42: 30 | B42: JUNE TOTAL | E42: =SUM(E38:E41) -> 0 | F42: =SUM(F38:F41) -> 0 | H42: =SUM(H38:H41) -> 0 | I42: =SUM(I38:I41) -> 0 | K42: =SUM(K38:K41) -> 0 | M42: =SUM(M38:M41) -> 0 | N42: 0 | O42: 0 | P42: 0 | Q42: 0 | R42: 0 | S42: 0 | T42: 0 | U42: 0
A43: 31 | B43: JULY | C43: ISS & PROFESSIONAL SERVICES STAFF (CONTRACTED ISS JOB DUTIES ONLY) | D43: =ROUNDDOWN((E43+E44)/VLOOKUP('Administrator Regression Table'!$P$1,'Administrator Regression Table'!$M$1:$N$9,2),0) ->  | E43: 0 | F43: 0 | G43: =IF((E43+F43)<=0,0,SUM(E43+F43)/SUM(E43+F43+H43+I43+K43)) -> 0 | H43: 0 | I43: 0 | J43: =IF((H43+I43)<=0,0,SUM(H43+I43)/SUM(E43+F43+H43+I43+K43)) -> 0 | K43: 0 | L43: =IF(K43<=0,0,K43/SUM(E43+F43+H43+I43+K43)) -> 0 | M43: 0 | N43: 0 | O43: =SUM(E43+F43+H43+I43+M43+N43+K43) -> 0 | P43: 0 | Q43: 0 | R43: =SUM(O43:Q43) -> 0 | S43: =ROUND(SUM(E43+F43),2)+ROUND(SUM(M43+N43+P43+Q43)*G43,2) -> 0 | T43: 0 | U43: =K43+ROUND(SUM(M43+N43+P43+Q43)*L43,2) -> 0
A44: 32 | B44: JULY | C44: ISS & ADMINISTRATIVE OR NON-CONTRACTED STAFF (STAFF PERFORMS CONTRACTED & NON-CONTRACTED AND/OR ADMINSTRATIVE WORK) | E44: 0 | F44: 0 | G44: =IF((E44+F44)<=0,0,SUM(E44+F44)/SUM(E44+F44+H44+I44+K44)) -> 0 | H44: 0 | I44: 0 | J44: =IF((H44+I44)<=0,0,SUM(H44+I44)/SUM(E44+F44+H44+I44+K44)) -> 0 | K44: 0 | L44: =IF(K44<=0,0,K44/SUM(E44+F44+H44+I44+K44)) -> 0 | M44: 0 | N44: 0 | O44: =SUM(E44+F44+H44+I44+M44+N44+K44) -> 0 | P44: 0 | Q44: 0 | R44: =SUM(O44:Q44) -> 0 | S44: =ROUND(SUM(E44+F44),2)+ROUND(SUM(M44+N44+P44+Q44)*G44,2) -> 0 | T44: =ROUND(SUM(H44+I44),2)+ROUND(SUM(M44+N44+P44+Q44)*J44,2) -> 0 | U44: =K44+ROUND(SUM(M44+N44+P44+Q44)*L44,2) -> 0
A45: 33 | B45: JULY | C45: GH ONLY - ADMINISTRATOR PAYROLL | E45: 0 | F45: 0 | G45: =IF((E45+F45)<=0,0,SUM(E45+F45)/SUM(E45+F45+H45+I45+K45)) -> 0 | H45: 0 | I45: 0 | J45: =IF((H45+I45)<=0,0,SUM(H45+I45)/SUM(E45+F45+H45+I45+K45)) -> 0 | K45: 0 | L45: =IF(K45<=0,0,K45/SUM(E45+F45+H45+I45+K45)) -> 0 | M45: 0 | N45: 0 | O45: =SUM(E45+F45+H45+I45+M45+N45+K45) -> 0 | P45: 0 | Q45: 0 | R45: =SUM(O45:Q45) -> 0 | S45: =ROUND(SUM(E45+F45),2)+ROUND(SUM(M45+N45+P45+Q45)*G45,2) -> 0 | T45: =ROUND(SUM(H45+I45),2)+ROUND(SUM(M45+N45+P45+Q45)*J45,2) -> 0 | U45: =K45+ROUND(SUM(M45+N45+P45+Q45)*L45,2) -> 0
A46: 34 | B46: JULY | C46: ADMINISTRATOR ISS PAYROLL FOR SL & COMBINED SL/GH AGENCIES WITH 20 OR FEWER ISS FTE'S | D46: =SUM(D43:D44) ->  | E46: 0 | F46: 0 | G46: =IF((E46+F46)<=0,0,SUM(E46+F46)/SUM(E46+F46+H46+I46+K46)) -> 0 | H46: 0 | I46: 0 | J46: =IF((H46+I46)<=0,0,SUM(H46+I46)/SUM(E46+F46+H46+I46+K46)) -> 0 | K46: 0 | L46: =IF(K46<=0,0,K46/SUM(E46+F46+H46+I46+K46)) -> 0 | M46: 0 | N46: 0 | O46: =SUM(E46+F46+H46+I46+M46+N46+K46) -> 0 | P46: 0 | Q46: 0 | R46: =SUM(O46:Q46) -> 0 | S46: =IF(G46=0,0,IF((M46+N46+P46+Q46)*G46+(E46+F46)<(HLOOKUP('Administrator Regression Table'!$Q$1,'Administrator Regression Table'!$R$1:$U$63,39)*G46),((M46+N46+P46+Q46)*G46+(E46+F46)),(HLOOKUP('Administrator Regression Table'!$Q$1,'Administrator Regression Table'!$R$1:$U$63,39)*G46))) -> 0 | T46: =R46-U46-S46 -> 0 | U46: =K46+ROUND(SUM(M46+N46+P46+Q46)*L46,2) -> 0
A47: 35 | B47: JULY TOTAL | E47: =SUM(E43:E46) -> 0 | F47: =SUM(F43:F46) -> 0 | H47: =SUM(H43:H46) -> 0 | I47: =SUM(I43:I46) -> 0 | K47: =SUM(K43:K46) -> 0 | M47: =SUM(M43:M46) -> 0 | N47: 0 | O47: 0 | P47: 0 | Q47: 0 | R47: 0 | S47: 0 | T47: 0 | U47: 0
A48: 36 | B48: AUGUST | C48: ISS & PROFESSIONAL SERVICES STAFF (CONTRACTED ISS JOB DUTIES ONLY) | D48: =ROUNDDOWN((E48+E49)/VLOOKUP('Administrator Regression Table'!$P$1,'Administrator Regression Table'!$M$1:$N$9,2),0) ->  | E48: 0 | F48: 0 | G48: =IF((E48+F48)<=0,0,SUM(E48+F48)/SUM(E48+F48+H48+I48+K48)) -> 0 | H48: 0 | I48: 0 | J48: =IF((H48+I48)<=0,0,SUM(H48+I48)/SUM(E48+F48+H48+I48+K48)) -> 0 | K48: 0 | L48: =IF(K48<=0,0,K48/SUM(E48+F48+H48+I48+K48)) -> 0 | M48: 0 | N48: 0 | O48: =SUM(E48+F48+H48+I48+M48+N48+K48) -> 0 | P48: 0 | Q48: 0 | R48: =SUM(O48:Q48) -> 0 | S48: =ROUND(SUM(E48+F48),2)+ROUND(SUM(M48+N48+P48+Q48)*G48,2) -> 0 | T48: 0 | U48: =K48+ROUND(SUM(M48+N48+P48+Q48)*L48,2) -> 0
A49: 37 | B49: AUGUST | C49: ISS & ADMINISTRATIVE OR NON-CONTRACTED STAFF (STAFF PERFORMS CONTRACTED & NON-CONTRACTED AND/OR ADMINSTRATIVE WORK) | E49: 0 | F49: 0 | G49: =IF((E49+F49)<=0,0,SUM(E49+F49)/SUM(E49+F49+H49+I49+K49)) -> 0 | H49: 0 | I49: 0 | J49: =IF((H49+I49)<=0,0,SUM(H49+I49)/SUM(E49+F49+H49+I49+K49)) -> 0 | K49: 0 | L49: =IF(K49<=0,0,K49/SUM(E49+F49+H49+I49+K49)) -> 0 | M49: 0 | N49: 0 | O49: =SUM(E49+F49+H49+I49+M49+N49+K49) -> 0 | P49: 0 | Q49: 0 | R49: =SUM(O49:Q49) -> 0 | S49: =ROUND(SUM(E49+F49),2)+ROUND(SUM(M49+N49+P49+Q49)*G49,2) -> 0 | T49: =ROUND(SUM(H49+I49),2)+ROUND(SUM(M49+N49+P49+Q49)*J49,2) -> 0 | U49: =K49+ROUND(SUM(M49+N49+P49+Q49)*L49,2) -> 0
A50: 38 | B50: AUGUST | C50: GH ONLY - ADMINISTRATOR PAYROLL | E50: 0 | F50: 0 | G50: =IF((E50+F50)<=0,0,SUM(E50+F50)/SUM(E50+F50+H50+I50+K50)) -> 0 | H50: 0 | I50: 0 | J50: =IF((H50+I50)<=0,0,SUM(H50+I50)/SUM(E50+F50+H50+I50+K50)) -> 0 | K50: 0 | L50: =IF(K50<=0,0,K50/SUM(E50+F50+H50+I50+K50)) -> 0 | M50: 0 | N50: 0 | O50: =SUM(E50+F50+H50+I50+M50+N50+K50) -> 0 | P50: 0 | Q50: 0 | R50: =SUM(O50:Q50) -> 0 | S50: =ROUND(SUM(E50+F50),2)+ROUND(SUM(M50+N50+P50+Q50)*G50,2) -> 0 | T50: =ROUND(SUM(H50+I50),2)+ROUND(SUM(M50+N50+P50+Q50)*J50,2) -> 0 | U50: =K50+ROUND(SUM(M50+N50+P50+Q50)*L50,2) -> 0
A51: 39 | B51: AUGUST | C51: ADMINISTRATOR ISS PAYROLL FOR SL & COMBINED SL/GH AGENCIES WITH 20 OR FEWER ISS FTE'S | D51: =SUM(D48:D49) ->  | E51: 0 | F51: 0 | G51: =IF((E51+F51)<=0,0,SUM(E51+F51)/SUM(E51+F51+H51+I51+K51)) -> 0 | H51: 0 | I51: 0 | J51: =IF((H51+I51)<=0,0,SUM(H51+I51)/SUM(E51+F51+H51+I51+K51)) -> 0 | K51: 0 | L51: =IF(K51<=0,0,K51/SUM(E51+F51+H51+I51+K51)) -> 0 | M51: 0 | N51: 0 | O51: =SUM(E51+F51+H51+I51+M51+N51+K51) -> 0 | P51: 0 | Q51: 0 | R51: =SUM(O51:Q51) -> 0 | S51: =IF(G51=0,0,IF((M51+N51+P51+Q51)*G51+(E51+F51)<(HLOOKUP('Administrator Regression Table'!$Q$1,'Administrator Regression Table'!$R$1:$U$63,43)*G51),((M51+N51+P51+Q51)*G51+(E51+F51)),(HLOOKUP('Administrator Regression Table'!$Q$1,'Administrator Regression Table'!$R$1:$U$63,43)*G51))) -> 0 | T51: =R51-U51-S51 -> 0 | U51: =K51+ROUND(SUM(M51+N51+P51+Q51)*L51,2) -> 0
A52: 40 | B52: AUGUST TOTAL | E52: =SUM(E48:E51) -> 0 | F52: =SUM(F48:F51) -> 0 | H52: =SUM(H48:H51) -> 0 | I52: =SUM(I48:I51) -> 0 | K52: =SUM(K48:K51) -> 0 | M52: =SUM(M48:M51) -> 0 | N52: 0 | O52: 0 | P52: 0 | Q52: 0 | R52: 0 | S52: 0 | T52: 0 | U52: 0
A53: 41 | B53: SEPTEMBER / 3RD QUARTER | C53: ISS & PROFESSIONAL SERVICES STAFF (CONTRACTED ISS JOB DUTIES ONLY) | D53: =ROUNDDOWN((E53+E54)/VLOOKUP('Administrator Regression Table'!$P$1,'Administrator Regression Table'!$M$1:$N$9,2),0) ->  | E53: 0 | F53: 0 | G53: =IF((E53+F53)<=0,0,SUM(E53+F53)/SUM(E53+F53+H53+I53+K53)) -> 0 | H53: 0 | I53: 0 | J53: =IF((H53+I53)<=0,0,SUM(H53+I53)/SUM(E53+F53+H53+I53+K53)) -> 0 | K53: 0 | L53: =IF(K53<=0,0,K53/SUM(E53+F53+H53+I53+K53)) -> 0 | M53: 0 | N53: 0 | O53: =SUM(E53+F53+H53+I53+M53+N53+K53) -> 0 | P53: 0 | Q53: 0 | R53: =SUM(O53:Q53) -> 0 | S53: =ROUND(SUM(E53+F53),2)+ROUND(SUM(M53+N53+P53+Q53)*G53,2) -> 0 | T53: 0 | U53: =K53+ROUND(SUM(M53+N53+P53+Q53)*L53,2) -> 0
A54: 42 | B54: SEPTEMBER / 3RD QUARTER | C54: ISS & ADMINISTRATIVE OR NON-CONTRACTED STAFF (STAFF PERFORMS CONTRACTED & NON-CONTRACTED AND/OR ADMINSTRATIVE WORK) | E54: 0 | F54: 0 | G54: =IF((E54+F54)<=0,0,SUM(E54+F54)/SUM(E54+F54+H54+I54+K54)) -> 0 | H54: 0 | I54: 0 | J54: =IF((H54+I54)<=0,0,SUM(H54+I54)/SUM(E54+F54+H54+I54+K54)) -> 0 | K54: 0 | L54: =IF(K54<=0,0,K54/SUM(E54+F54+H54+I54+K54)) -> 0 | M54: 0 | N54: 0 | O54: =SUM(E54+F54+H54+I54+M54+N54+K54) -> 0 | P54: 0 | Q54: 0 | R54: =SUM(O54:Q54) -> 0 | S54: =ROUND(SUM(E54+F54),2)+ROUND(SUM(M54+N54+P54+Q54)*G54,2) -> 0 | T54: =ROUND(SUM(H54+I54),2)+ROUND(SUM(M54+N54+P54+Q54)*J54,2) -> 0 | U54: =K54+ROUND(SUM(M54+N54+P54+Q54)*L54,2) -> 0
A55: 43 | B55: SEPTEMBER / 3RD QUARTER | C55: GH ONLY - ADMINISTRATOR PAYROLL | E55: 0 | F55: 0 | G55: =IF((E55+F55)<=0,0,SUM(E55+F55)/SUM(E55+F55+H55+I55+K55)) -> 0 | H55: 0 | I55: 0 | J55: =IF((H55+I55)<=0,0,SUM(H55+I55)/SUM(E55+F55+H55+I55+K55)) -> 0 | K55: 0 | L55: =IF(K55<=0,0,K55/SUM(E55+F55+H55+I55+K55)) -> 0 | M55: 0 | N55: 0 | O55: =SUM(E55+F55+H55+I55+M55+N55+K55) -> 0 | P55: 0 | Q55: 0 | R55: =SUM(O55:Q55) -> 0 | S55: =ROUND(SUM(E55+F55),2)+ROUND(SUM(M55+N55+P55+Q55)*G55,2) -> 0 | T55: =ROUND(SUM(H55+I55),2)+ROUND(SUM(M55+N55+P55+Q55)*J55,2) -> 0 | U55: =K55+ROUND(SUM(M55+N55+P55+Q55)*L55,2) -> 0
A56: 44 | B56: SEPTEMBER / 3RD QUARTER | C56: ADMINISTRATOR ISS PAYROLL FOR SL & COMBINED SL/GH AGENCIES WITH 20 OR FEWER ISS FTE'S | D56: =SUM(D53:D54) ->  | E56: 0 | F56: 0 | G56: =IF((E56+F56)<=0,0,SUM(E56+F56)/SUM(E56+F56+H56+I56+K56)) -> 0 | H56: 0 | I56: 0 | J56: =IF((H56+I56)<=0,0,SUM(H56+I56)/SUM(E56+F56+H56+I56+K56)) -> 0 | K56: 0 | L56: =IF(K56<=0,0,K56/SUM(E56+F56+H56+I56+K56)) -> 0 | M56: 0 | N56: 0 | O56: =SUM(E56+F56+H56+I56+M56+N56+K56) -> 0 | P56: 0 | Q56: 0 | R56: =SUM(O56:Q56) -> 0 | S56: =IF(G56=0,0,IF((M56+N56+P56+Q56)*G56+(E56+F56)<(HLOOKUP('Administrator Regression Table'!$Q$1,'Administrator Regression Table'!$R$1:$U$63,47)*G56),((M56+N56+P56+Q56)*G56+(E56+F56)),(HLOOKUP('Administrator Regression Table'!$Q$1,'Administrator Regression Table'!$R$1:$U$63,47)*G56))) -> 0 | T56: =R56-U56-S56 -> 0 | U56: =K56+ROUND(SUM(M56+N56+P56+Q56)*L56,2) -> 0
A57: 45 | B57: SEPTEMBER TOTAL | E57: =SUM(E53:E56) -> 0 | F57: =SUM(F53:F56) -> 0 | H57: =SUM(H53:H56) -> 0 | I57: =SUM(I53:I56) -> 0 | K57: =SUM(K53:K56) -> 0 | M57: =SUM(M53:M56) -> 0 | N57: 0 | O57: 0 | P57: 0 | Q57: 0 | R57: 0 | S57: 0 | T57: 0 | U57: 0
A58: 46 | B58: OCTOBER | C58: ISS & PROFESSIONAL SERVICES STAFF (CONTRACTED ISS JOB DUTIES ONLY) | D58: =ROUNDDOWN((E58+E59)/VLOOKUP('Administrator Regression Table'!$P$1,'Administrator Regression Table'!$M$1:$N$9,2),0) ->  | E58: 0 | F58: 0 | G58: =IF((E58+F58)<=0,0,SUM(E58+F58)/SUM(E58+F58+H58+I58+K58)) -> 0 | H58: 0 | I58: 0 | J58: =IF((H58+I58)<=0,0,SUM(H58+I58)/SUM(E58+F58+H58+I58+K58)) -> 0 | K58: 0 | L58: =IF(K58<=0,0,K58/SUM(E58+F58+H58+I58+K58)) -> 0 | M58: 0 | N58: 0 | O58: =SUM(E58+F58+H58+I58+M58+N58+K58) -> 0 | P58: 0 | Q58: 0 | R58: =SUM(O58:Q58) -> 0 | S58: =ROUND(SUM(E58+F58),2)+ROUND(SUM(M58+N58+P58+Q58)*G58,2) -> 0 | T58: 0 | U58: =K58+ROUND(SUM(M58+N58+P58+Q58)*L58,2) -> 0
A59: 47 | B59: OCTOBER | C59: ISS & ADMINISTRATIVE OR NON-CONTRACTED STAFF (STAFF PERFORMS CONTRACTED & NON-CONTRACTED AND/OR ADMINSTRATIVE WORK) | E59: 0 | F59: 0 | G59: =IF((E59+F59)<=0,0,SUM(E59+F59)/SUM(E59+F59+H59+I59+K59)) -> 0 | H59: 0 | I59: 0 | J59: =IF((H59+I59)<=0,0,SUM(H59+I59)/SUM(E59+F59+H59+I59+K59)) -> 0 | K59: 0 | L59: =IF(K59<=0,0,K59/SUM(E59+F59+H59+I59+K59)) -> 0 | M59: 0 | N59: 0 | O59: =SUM(E59+F59+H59+I59+M59+N59+K59) -> 0 | P59: 0 | Q59: 0 | R59: =SUM(O59:Q59) -> 0 | S59: =ROUND(SUM(E59+F59),2)+ROUND(SUM(M59+N59+P59+Q59)*G59,2) -> 0 | T59: =ROUND(SUM(H59+I59),2)+ROUND(SUM(M59+N59+P59+Q59)*J59,2) -> 0 | U59: =K59+ROUND(SUM(M59+N59+P59+Q59)*L59,2) -> 0
A60: 48 | B60: OCTOBER | C60: GH ONLY - ADMINISTRATOR PAYROLL | E60: 0 | F60: 0 | G60: =IF((E60+F60)<=0,0,SUM(E60+F60)/SUM(E60+F60+H60+I60+K60)) -> 0 | H60: 0 | I60: 0 | J60: =IF((H60+I60)<=0,0,SUM(H60+I60)/SUM(E60+F60+H60+I60+K60)) -> 0 | K60: 0 | L60: =IF(K60<=0,0,K60/SUM(E60+F60+H60+I60+K60)) -> 0 | M60: 0 | N60: 0 | O60: =SUM(E60+F60+H60+I60+M60+N60+K60) -> 0 | P60: 0 | Q60: 0 | R60: =SUM(O60:Q60) -> 0 | S60: =ROUND(SUM(E60+F60),2)+ROUND(SUM(M60+N60+P60+Q60)*G60,2) -> 0 | T60: =ROUND(SUM(H60+I60),2)+ROUND(SUM(M60+N60+P60+Q60)*J60,2) -> 0 | U60: =K60+ROUND(SUM(M60+N60+P60+Q60)*L60,2) -> 0
A61: 49 | B61: OCTOBER | C61: ADMINISTRATOR ISS PAYROLL FOR SL & COMBINED SL/GH AGENCIES WITH 20 OR FEWER ISS FTE'S | D61: =SUM(D58:D59) ->  | E61: 0 | F61: 0 | G61: =IF((E61+F61)<=0,0,SUM(E61+F61)/SUM(E61+F61+H61+I61+K61)) -> 0 | H61: 0 | I61: 0 | J61: =IF((H61+I61)<=0,0,SUM(H61+I61)/SUM(E61+F61+H61+I61+K61)) -> 0 | K61: 0 | L61: =IF(K61<=0,0,K61/SUM(E61+F61+H61+I61+K61)) -> 0 | M61: 0 | N61: 0 | O61: =SUM(E61+F61+H61+I61+M61+N61+K61) -> 0 | P61: 0 | Q61: 0 | R61: =SUM(O61:Q61) -> 0 | S61: =IF(G61=0,0,IF((M61+N61+P61+Q61)*G61+(E61+F61)<(HLOOKUP('Administrator Regression Table'!$Q$1,'Administrator Regression Table'!$R$1:$U$63,51)*G61),((M61+N61+P61+Q61)*G61+(E61+F61)),(HLOOKUP('Administrator Regression Table'!$Q$1,'Administrator Regression Table'!$R$1:$U$63,51)*G61))) -> 0 | T61: =R61-U61-S61 -> 0 | U61: =K61+ROUND(SUM(M61+N61+P61+Q61)*L61,2) -> 0
A62: 50 | B62: OCTOBER TOTAL | E62: =SUM(E58:E61) -> 0 | F62: =SUM(F58:F61) -> 0 | H62: =SUM(H58:H61) -> 0 | I62: =SUM(I58:I61) -> 0 | K62: =SUM(K58:K61) -> 0 | M62: =SUM(M58:M61) -> 0 | N62: 0 | O62: 0 | P62: 0 | Q62: 0 | R62: 0 | S62: 0 | T62: 0 | U62: 0
A63: 51 | B63: NOVEMBER | C63: ISS & PROFESSIONAL SERVICES STAFF (CONTRACTED ISS JOB DUTIES ONLY) | D63: =ROUNDDOWN((E63+E64)/VLOOKUP('Administrator Regression Table'!$P$1,'Administrator Regression Table'!$M$1:$N$9,2),0) ->  | E63: 0 | F63: 0 | G63: =IF((E63+F63)<=0,0,SUM(E63+F63)/SUM(E63+F63+H63+I63+K63)) -> 0 | H63: 0 | I63: 0 | J63: =IF((H63+I63)<=0,0,SUM(H63+I63)/SUM(E63+F63+H63+I63+K63)) -> 0 | K63: 0 | L63: =IF(K63<=0,0,K63/SUM(E63+F63+H63+I63+K63)) -> 0 | M63: 0 | N63: 0 | O63: =SUM(E63+F63+H63+I63+M63+N63+K63) -> 0 | P63: 0 | Q63: 0 | R63: =SUM(O63:Q63) -> 0 | S63: =ROUND(SUM(E63+F63),2)+ROUND(SUM(M63+N63+P63+Q63)*G63,2) -> 0 | T63: 0 | U63: =K63+ROUND(SUM(M63+N63+P63+Q63)*L63,2) -> 0
A64: 52 | B64: NOVEMBER | C64: ISS & ADMINISTRATIVE OR NON-CONTRACTED STAFF (STAFF PERFORMS CONTRACTED & NON-CONTRACTED AND/OR ADMINSTRATIVE WORK) | E64: 0 | F64: 0 | G64: =IF((E64+F64)<=0,0,SUM(E64+F64)/SUM(E64+F64+H64+I64+K64)) -> 0 | H64: 0 | I64: 0 | J64: =IF((H64+I64)<=0,0,SUM(H64+I64)/SUM(E64+F64+H64+I64+K64)) -> 0 | K64: 0 | L64: =IF(K64<=0,0,K64/SUM(E64+F64+H64+I64+K64)) -> 0 | M64: 0 | N64: 0 | O64: =SUM(E64+F64+H64+I64+M64+N64+K64) -> 0 | P64: 0 | Q64: 0 | R64: =SUM(O64:Q64) -> 0 | S64: =ROUND(SUM(E64+F64),2)+ROUND(SUM(M64+N64+P64+Q64)*G64,2) -> 0 | T64: =ROUND(SUM(H64+I64),2)+ROUND(SUM(M64+N64+P64+Q64)*J64,2) -> 0 | U64: =K64+ROUND(SUM(M64+N64+P64+Q64)*L64,2) -> 0
A65: 53 | B65: NOVEMBER | C65: GH ONLY - ADMINISTRATOR PAYROLL | E65: 0 | F65: 0 | G65: =IF((E65+F65)<=0,0,SUM(E65+F65)/SUM(E65+F65+H65+I65+K65)) -> 0 | H65: 0 | I65: 0 | J65: =IF((H65+I65)<=0,0,SUM(H65+I65)/SUM(E65+F65+H65+I65+K65)) -> 0 | K65: 0 | L65: =IF(K65<=0,0,K65/SUM(E65+F65+H65+I65+K65)) -> 0 | M65: 0 | N65: 0 | O65: =SUM(E65+F65+H65+I65+M65+N65+K65) -> 0 | P65: 0 | Q65: 0 | R65: =SUM(O65:Q65) -> 0 | S65: =ROUND(SUM(E65+F65),2)+ROUND(SUM(M65+N65+P65+Q65)*G65,2) -> 0 | T65: =ROUND(SUM(H65+I65),2)+ROUND(SUM(M65+N65+P65+Q65)*J65,2) -> 0 | U65: =K65+ROUND(SUM(M65+N65+P65+Q65)*L65,2) -> 0
A66: 54 | B66: NOVEMBER | C66: ADMINISTRATOR ISS PAYROLL FOR SL & COMBINED SL/GH AGENCIES WITH 20 OR FEWER ISS FTE'S | D66: =SUM(D63:D64) ->  | E66: 0 | F66: 0 | G66: =IF((E66+F66)<=0,0,SUM(E66+F66)/SUM(E66+F66+H66+I66+K66)) -> 0 | H66: 0 | I66: 0 | J66: =IF((H66+I66)<=0,0,SUM(H66+I66)/SUM(E66+F66+H66+I66+K66)) -> 0 | K66: 0 | L66: =IF(K66<=0,0,K66/SUM(E66+F66+H66+I66+K66)) -> 0 | M66: 0 | N66: 0 | O66: =SUM(E66+F66+H66+I66+M66+N66+K66) -> 0 | P66: 0 | Q66: 0 | R66: =SUM(O66:Q66) -> 0 | S66: =IF(G66=0,0,IF((M66+N66+P66+Q66)*G66+(E66+F66)<(HLOOKUP('Administrator Regression Table'!$Q$1,'Administrator Regression Table'!$R$1:$U$63,55)*G66),((M66+N66+P66+Q66)*G66+(E66+F66)),(HLOOKUP('Administrator Regression Table'!$Q$1,'Administrator Regression Table'!$R$1:$U$63,55)*G66))) -> 0 | T66: =R66-U66-S66 -> 0 | U66: =K66+ROUND(SUM(M66+N66+P66+Q66)*L66,2) -> 0
A67: 55 | B67: NOVEMBER TOTAL | E67: =SUM(E63:E66) -> 0 | F67: =SUM(F63:F66) -> 0 | H67: =SUM(H63:H66) -> 0 | I67: =SUM(I63:I66) -> 0 | K67: =SUM(K63:K66) -> 0 | M67: =SUM(M63:M66) -> 0 | N67: 0 | O67: 0 | P67: 0 | Q67: 0 | R67: 0 | S67: 0 | T67: 0 | U67: 0
A68: 56 | B68: DECEMBER / 4TH QUARTER | C68: ISS & PROFESSIONAL SERVICES STAFF (CONTRACTED ISS JOB DUTIES ONLY) | D68: =ROUNDDOWN((E68+E69)/VLOOKUP('Administrator Regression Table'!$P$1,'Administrator Regression Table'!$M$1:$N$9,2),0) ->  | E68: 0 | F68: 0 | G68: =IF((E68+F68)<=0,0,SUM(E68+F68)/SUM(E68+F68+H68+I68+K68)) -> 0 | H68: 0 | I68: 0 | J68: =IF((H68+I68)<=0,0,SUM(H68+I68)/SUM(E68+F68+H68+I68+K68)) -> 0 | K68: 0 | L68: =IF(K68<=0,0,K68/SUM(E68+F68+H68+I68+K68)) -> 0 | M68: 0 | N68: 0 | O68: =SUM(E68+F68+H68+I68+M68+N68+K68) -> 0 | P68: 0 | Q68: 0 | R68: =SUM(O68:Q68) -> 0 | S68: =ROUND(SUM(E68+F68),2)+ROUND(SUM(M68+N68+P68+Q68)*G68,2) -> 0 | T68: 0 | U68: =K68+ROUND(SUM(M68+N68+P68+Q68)*L68,2) -> 0
A69: 57 | B69: DECEMBER / 4TH QUARTER | C69: ISS & ADMINISTRATIVE OR NON-CONTRACTED STAFF (STAFF PERFORMS CONTRACTED & NON-CONTRACTED AND/OR ADMINSTRATIVE WORK) | E69: 0 | F69: 0 | G69: =IF((E69+F69)<=0,0,SUM(E69+F69)/SUM(E69+F69+H69+I69+K69)) -> 0 | H69: 0 | I69: 0 | J69: =IF((H69+I69)<=0,0,SUM(H69+I69)/SUM(E69+F69+H69+I69+K69)) -> 0 | K69: 0 | L69: =IF(K69<=0,0,K69/SUM(E69+F69+H69+I69+K69)) -> 0 | M69: 0 | N69: 0 | O69: =SUM(E69+F69+H69+I69+M69+N69+K69) -> 0 | P69: 0 | Q69: 0 | R69: =SUM(O69:Q69) -> 0 | S69: =ROUND(SUM(E69+F69),2)+ROUND(SUM(M69+N69+P69+Q69)*G69,2) -> 0 | T69: =ROUND(SUM(H69+I69),2)+ROUND(SUM(M69+N69+P69+Q69)*J69,2) -> 0 | U69: =K69+ROUND(SUM(M69+N69+P69+Q69)*L69,2) -> 0
A70: 58 | B70: DECEMBER / 4TH QUARTER | C70: GH ONLY - ADMINISTRATOR PAYROLL | E70: 0 | F70: 0 | G70: =IF((E70+F70)<=0,0,SUM(E70+F70)/SUM(E70+F70+H70+I70+K70)) -> 0 | H70: 0 | I70: 0 | J70: =IF((H70+I70)<=0,0,SUM(H70+I70)/SUM(E70+F70+H70+I70+K70)) -> 0 | K70: 0 | L70: =IF(K70<=0,0,K70/SUM(E70+F70+H70+I70+K70)) -> 0 | M70: 0 | N70: 0 | O70: =SUM(E70+F70+H70+I70+M70+N70+K70) -> 0 | P70: 0 | Q70: 0 | R70: =SUM(O70:Q70) -> 0 | S70: =ROUND(SUM(E70+F70),2)+ROUND(SUM(M70+N70+P70+Q70)*G70,2) -> 0 | T70: =ROUND(SUM(H70+I70),2)+ROUND(SUM(M70+N70+P70+Q70)*J70,2) -> 0 | U70: =K70+ROUND(SUM(M70+N70+P70+Q70)*L70,2) -> 0
A71: 59 | B71: DECEMBER / 4TH QUARTER | C71: ADMINISTRATOR ISS PAYROLL FOR SL & COMBINED SL/GH AGENCIES WITH 20 OR FEWER ISS FTE'S | D71: =SUM(D68:D69) ->  | E71: 0 | F71: 0 | G71: =IF((E71+F71)<=0,0,SUM(E71+F71)/SUM(E71+F71+H71+I71+K71)) -> 0 | H71: 0 | I71: 0 | J71: =IF((H71+I71)<=0,0,SUM(H71+I71)/SUM(E71+F71+H71+I71+K71)) -> 0 | K71: 0 | L71: =IF(K71<=0,0,K71/SUM(E71+F71+H71+I71+K71)) -> 0 | M71: 0 | N71: 0 | O71: =SUM(E71+F71+H71+I71+M71+N71+K71) -> 0 | P71: 0 | Q71: 0 | R71: =SUM(O71:Q71) -> 0 | S71: =IF(G71=0,0,IF((M71+N71+P71+Q71)*G71+(E71+F71)<(HLOOKUP('Administrator Regression Table'!$Q$1,'Administrator Regression Table'!$R$1:$U$63,59)*G71),((M71+N71+P71+Q71)*G71+(E71+F71)),(HLOOKUP('Administrator Regression Table'!$Q$1,'Administrator Regression Table'!$R$1:$U$63,59)*G71))) -> 0 | T71: =R71-U71-S71 -> 0 | U71: =K71+ROUND(SUM(M71+N71+P71+Q71)*L71,2) -> 0
A72: 60 | B72: DECEMBER TOTAL | E72: =SUM(E68:E71) -> 0 | F72: =SUM(F68:F71) -> 0 | H72: =SUM(H68:H71) -> 0 | I72: =SUM(I68:I71) -> 0 | K72: =SUM(K68:K71) -> 0 | M72: =SUM(M68:M71) -> 0 | N72: 0 | O72: 0 | P72: 0 | Q72: 0 | R72: 0 | S72: 0 | T72: 0 | U72: 0
A73: 61 | B73: ANNUAL TOTALS | C73: ISS & PROFESSIONAL SERVICES STAFF (CONTRACTED ISS JOB DUTIES ONLY) | D73: =ROUNDDOWN(IF(B10="Quarterly",SUM(D23+D38+D53+D68)/4,SUM(D13+D18+D23+D28+D33+D38+D43+D48+D53+D58+D63+D68)/12),0) ->  | E73: =SUM(E13+E18+E23+E28+E33+E38+E43+E48+E53+E58+E63+E68) -> 0 | F73: 0 | G73: =IF((E73+F73)<=0,0,SUM(E73+F73)/SUM(E73+F73+H73+I73+K73)) -> 0 | H73: =SUM(H13+H18+H23+H28+H33+H38+H43+H48+H53+H58+H63+H68) -> 0 | I73: 0 | J73: =IF((H73+I73)<=0,0,SUM(H73+I73)/SUM(E73+F73+H73+I73+K73)) -> 0 | K73: =SUM(K13+K18+K23+K28+K33+K38+K43+K48+K53+K58+K63+K68) -> 0 | L73: =IF(K73<=0,0,K73/SUM(E73+F73+H73+I73+K73)) -> 0 | M73: =SUM(M13+M18+M23+M28+M33+M38+M43+M48+M53+M58+M63+M68) -> 0 | N73: 0 | O73: =SUM(E73+F73+H73+I73+M73+N73+K73) -> 0 | P73: =SUM(P13+P18+P23+P28+P33+P38+P43+P48+P53+P58+P63+P68) -> 0 | Q73: 0 | R73: =SUM(O73:Q73) -> 0 | S73: =SUM(S13+S18+S23+S28+S33+S38+S43+S48+S53+S58+S63+S68) -> 0 | T73: 0 | U73: 0
A74: 62 | B74: ANNUAL TOTALS | C74: ISS & ADMINISTRATIVE OR NON-CONTRACTED STAFF (STAFF PERFORMS CONTRACTED & NON-CONTRACTED AND/OR ADMINSTRATIVE WORK) | E74: 0 | F74: 0 | G74: =IF((E74+F74)<=0,0,SUM(E74+F74)/SUM(E74+F74+H74+I74+K74)) -> 0 | H74: 0 | I74: 0 | J74: =IF((H74+I74)<=0,0,SUM(H74+I74)/SUM(E74+F74+H74+I74+K74)) -> 0 | K74: =SUM(K14+K19+K24+K29+K34+K39+K44+K49+K54+K59+K64+K69) -> 0 | L74: =IF(K74<=0,0,K74/SUM(E74+F74+H74+I74+K74)) -> 0 | M74: 0 | N74: 0 | O74: =SUM(E74+F74+H74+I74+M74+N74+K74) -> 0 | P74: 0 | Q74: 0 | R74: =SUM(O74:Q74) -> 0 | S74: 0 | T74: 0 | U74: 0
A75: 63 | B75: ANNUAL TOTALS | C75: GH ONLY - ADMINISTRATOR PAYROLL | E75: 0 | F75: 0 | G75: =IF((E75+F75)<=0,0,SUM(E75+F75)/SUM(E75+F75+H75+I75+K75)) -> 0 | H75: 0 | I75: 0 | J75: =IF((H75+I75)<=0,0,SUM(H75+I75)/SUM(E75+F75+H75+I75+K75)) -> 0 | K75: =SUM(K15+K20+K25+K30+K35+K40+K45+K50+K55+K60+K65+K70) -> 0 | L75: =IF(K75<=0,0,K75/SUM(E75+F75+H75+I75+K75)) -> 0 | M75: 0 | N75: 0 | O75: =SUM(E75+F75+H75+I75+M75+N75+K75) -> 0 | P75: 0 | Q75: 0 | R75: =SUM(O75:Q75) -> 0 | S75: =SUM(S15+S20+S25+S30+S35+S40+S45+S50+S55+S60+S65+S70) -> 0 | T75: 0 | U75: 0
A76: 64 | B76: ANNUAL TOTALS | C76: ADMINISTRATOR ISS PAYROLL FOR SL & COMBINED SL/GH AGENCIES WITH 20 OR FEWER ISS FTE'S | D76: =SUM(D73:D74) ->  | E76: 0 | F76: 0 | G76: =IF((E76+F76)<=0,0,SUM(E76+F76)/SUM(E76+F76+H76+I76+K76)) -> 0 | H76: 0 | I76: 0 | J76: =IF((H76+I76)<=0,0,SUM(H76+I76)/SUM(E76+F76+H76+I76+K76)) -> 0 | K76: =SUM(K16+K21+K26+K31+K36+K41+K46+K51+K56+K61+K66+K71) -> 0 | L76: =IF(K76<=0,0,K76/SUM(E76+F76+H76+I76+K76)) -> 0 | M76: 0 | N76: 0 | O76: =SUM(E76+F76+H76+I76+M76+N76+K76) -> 0 | P76: 0 | Q76: 0 | R76: =SUM(O76:Q76) -> 0 | S76: 0 | T76: 0 | U76: 0
A77: 65 | B77: ANNUAL TOTALS | E77: =SUM(E73:E76) -> 0 | F77: =SUM(F73:F76) -> 0 | G77: =IF((E77+F77)<=0,0,SUM(E77+F77)/SUM(E77+F77+H77+I77+K77)) -> 0 | H77: =SUM(H73:H76) -> 0 | I77: =SUM(I73:I76) -> 0 | J77: =IF((H77+I77)<=0,0,SUM(H77+I77)/SUM(E77+F77+H77+I77+K77)) -> 0 | K77: =SUM(K73:K76) -> 0 | L77: =IF(K77<=0,0,K77/SUM(E77+F77+H77+I77+K77)) -> 0 | M77: =SUM(M73:M76) -> 0 | N77: 0 | O77: 0 | P77: 0 | Q77: 0 | R77: 0 | S77: 0 | T77: 0 | U77: 0
F78: Posts to Sch G, Line 25 | S78: Posts to Sch G, Line 24 (less OT-see E65) | T78: DO NOT INCLUDE ON SCHEDULE C
B79: DSHS/DDA Schedule B (Rev. 12/2022)

Sheet C - Non-ISS Expenses
B1: SCHEDULE C
G3: =_M000001 -> 0
G4: PROVIDER NAME
B9: 1 | C9: IS THE AGENCY A NON-PROFIT ORGANIZATION
B11: 2 | C11: DOES THE AGENCY PAY B&O TAXES TO THE DEPARTMENT OF REVENUE?
B13: 3 | C13: DOES THE AGENCY PAY CITY B&O TAXES? IF YES, SELECT CITY
B17: 4 | C17: ARE ISS ACCRUALS CLAIMED ON SCHEDULE B?
B19: 5 | C19: ARE PROFESSIONAL SERVICES CONTRACTED OR PURCHASED FOR CLIENTS SUPPORTED BY THE AGENCY?
C20: If Yes, include the cost of purchased or contracted professional services for settled programs on Schedule G, lines 20-22. Contracted or purchased professional services must be authorized in the client assessment. Provider must have supporting documentation for amounts reported and available to the department upon request.
B24: 6 | C24: ALLOCATION OF SHARED COSTS
C26: a | D26: Does your agency operate multiple programs contracted with DDA, e.g., Supported Living and Group Homes, or a combination of DDA and other contracts?
C28: b | D28: If yes to question 2a, do you allocate administrative and program overhead costs?
C30: c | D30: What is your agency's method of allocating costs?
D31: *If you answered "Other Method" for question 2c please describe your agencies allocation method in the box below:
B35: ADMINISTRATIVE & OPERATIONS COSTS (NON-ISS COSTS) | E35: AGENCY TYPE (Select from dropdown list) | F35: A | G35: B | H35: C
B38: NON-CLIENT RELATED EXPENSES
B39: 1 | C39: ADMINISTRATIVE/ NON-ISS PAYROLL EXPENSES (Do not include adminstrative payroll expenses reported on Schedule B, Columns G & H) | E39: =SUM(F39:H39) -> 0
C40: Adminstrator compensation for agencies with 21 or more FTE's, Administrative/Non-ISS staff compensation, Employer Paid Adminstrative/Non-ISS Payroll Taxes & Benefits, Administrative/Non-ISS Purchased Professional Services (i.e. CPA, Janitorial Svs, Lawn Svs), & Management Fees
B41: 2 | C41: PROGRAM OPERATIONS EXPENSES | E41: =SUM(F41:H41) -> 0
C42: Administrative Supplies, Administrative Transportation Expenses (i.e. travel, mileage, lodging, public transportation), Advertising Expense, Professional Liability Insurance, & any other General Administrative Expenses
B43: 3 | C43: CAPITAL & PROPERTY EXPENSES | E43: =SUM(F43:H43) -> 0
C44: Depreciation - Land Improvements, Buildings, Building Improvements, Leasehold Improvements, Furniture & Equipment, Communications Expense, Facility Insurance, Office Rent, Lease Payments, Utilities, Property Taxes, Minor Equipment, Other Property
B45: 4 | C45: INTEREST & TAX EXPENSES | E45: =SUM(F45:H45) -> 0
C46: Working Capital, Property, Line of Credit Debt Expense, Business Taxes (Does not include portion of B & O tax charged as ISS Payroll Tax)
B47: NON-ISS CLIENT RELATED EXPENSES
B48: 5 | C48: MAINTENANCE/ LAUNDRY/ HOUSEKEEPING/ DIETARY EXPENSES (GROUP HOME ONLY) | E48: =SUM(F48:H48) -> 0
C49: Salaries and Wages, Fringe Benefits and Payroll Taxes, Supplies & Materials, Purchased Services
B50: 6 | C50: TRANSPORTATION EXPENSES | E50: =SUM(F50:H50) -> 0
C51: Staff Mileage Reimbursement, All Other Client Transportation Expense (Agency Vehicle Fuel, Maint., Depreciation; Public Trans. Etc.)
B52: 7 | C52: OTHER NON-ISS CLIENT RELATED EXPENSES | E52: =SUM(F52:H52) -> 0
C53: Overnight Staff Coverage Lodging Expenses (housing units provided for on-duty staff - not primary dwelling for staff), Education and In-Service Training & Supplies, Activities and Habilitative Supplies & Other Expenses, Nursing Supplies Expense, Food Costs - Resident (Group Homes primarily), Food Costs - Staff
B54: TOTAL NON-ISS PROGRAM EXPENSES | E54: =_C000275+E41+E43+E45+E48+E50+E52 -> 0 | F54: =_C000276+F41+F43+F45+F48+F50+F52 -> 0 | G54: =_C000277+G41+G43+G45+G48+G50+G52 -> 0 | H54: =_C000280+H41+H43+H45+H48+H50+H52 -> 0
B56: DSHS/DDA Schedule C (Rev. 12/2022)

Sheet D - Revenue
B1: SCHEDULE D
G3: =_M000001 -> 0
G4: PROVIDER NAME
B6: RESIDENTIAL SERVICES REVENUE | E6: TOTALS | F6: A | G6: B | H6: C
F7: ='C - Non-ISS Expenses'!_M000101 -> 0 | G7: ='C - Non-ISS Expenses'!_M000102 -> 0 | H7: ='C - Non-ISS Expenses'!_M000105 -> 0
B8: 1 | C8: REVENUE FOR SERVICES PROVIDED | E8: =SUM(F8:H8) -> 0
C9: State Payments/Reimbursements for ISS/DSHS Clients (Total Daily Rate less covid add-on), ISS/DSHS Client Participation, Prior Years Settlements Deducted from State Payments, Non DSHS Client Payments
B10: 2 | C10: OTHER OPERATING REVENUE | E10: =SUM(F10:H10) -> 0
C11: Summer Programs, Client Evaluation, Non-DSHS Revenue, & Covid Add-On
B12: 3 | C12: NON-OPERATING REVENUE | E12: =SUM(F12:H12) -> 0
C13: Interest Income, Cash Donations & Contributions, Noncash Donations & Contributions
B14: TOTAL RESIDENTIAL SERVICES REVENUE | E14: =E8+E10+E12 -> 0 | F14: =F8+F10+F12 -> 0 | G14: =G8+G10+G12 -> 0 | H14: =H8+H10+H12 -> 0
B16: DSHS/DDA Schedule D (Rev. 12/2022)

Sheet E - Residential Staffing
B1: SCHEDULE E
P3: ='A - General Info & Cert'!B6 -> 0
P4: PROVIDER NAME
A6: IMPORTANT, PLEASE READ before completing schedule: COMPLETE A SEPARATE SCHEDULE FOR EACH LOCATION BY: PROGRAM TYPE, CITY, AND COUNTY FOR ADDITIONAL COPIES OF SCHEDULE E CONTACT YOUR AGENCY'S RATE ANALYST Reporting Periods: January 1, 2023 to June 30, 2023 & July 1, 2023 to December 31, 2023 (Semiannual Year, 12 months, 2023)
A8: The schedule(s) will be reviewed by the rate analyst to ensure the Agency is reporting contracts, programs, and locations separately. Any cost reports found to be incomplete will be returned to the agency for correction.
B10: 1. AGENCY INFORMATION:
C12: Where are the Services Provided?
C14: PROGRAM TYPE | F14: PROGRAM NAME | M14: CITY | O14: COUNTY
B17: 2. CONTACT INFORMATION:
C19: Name (Person Completing Schedule):
C20: Title (Person Completing Schedule):
C21: Telephone Number:
C22: E-Mail Address:
B24: 3. CLIENT INFORMATION:
C26: Average Monthly Count of Clients supported in this program?
B28: 4. EMPLOYEE BENEFITS:
C30: In addition to wages, does your agency provide benefits to ISS staff? Select yes or no from drop down list | O30: Yes or No
C31: Medical Insurance (paid in whole or in part by agency)
C32: Dental Insurance (paid in whole or in part by agency)
C33: Retirement (paid in whole or in part by agency)
C34: Paid Sick Leave
C35: Paid Vacation
C36: Short-Term Disability
C37: Long-Term Disability
C38: Jury Duty Leave
C39: Bereavement Leave
C40: Vision Insurance
C41: Employee Assistance Plan
C42: Life Insurance
B44: 5. RECRUITING:
C46: Difference in recruiting new staff from 1/1/2023 - 6/30/2023? (Only check boxes that apply) | L46: ENTRY LEVEL | M46: 1st LINE SUPERVISOR | N46: PROGRAM MANAGERS | O46: *SPECIALISTS (Recreation, behavioral, or staff trainers) | P46: NURSES (RN, LPN)
C47: Situation is worse than previous six months (Harder to recruit)
C48: Some improvement from previous six months (Easier to recruit)
C49: Definite improvement from previous six months (Much easier to recruit)
C50: No difference from previous six months
C52: Difference in recruiting new staff from 7/1/2023 - 12/31/2023? (Only check boxes that apply) | L52: ENTRY LEVEL | M52: 1st LINE SUPERVISOR | N52: PROGRAM MANAGERS | O52: *SPECIALISTS (Recreation, behavioral, or staff trainers) | P52: NURSES (RN, LPN)
C53: Situation is worse than previous six months (Harder to recruit)
C54: Some improvement from previous six months (Easier to recruit)
C55: Definite improvement from previous six months (Much easier to recruit)
C56: No difference from previous six months
B58: 6. STAFFING INFORMATION:
B60: SECTION 1A (TURNOVER)
D61: 1 | E61: 2 | F61: 3 | G61: 4 | I61: 5 | M61: 6 | N61: 7 | Q61: 8
D62: Beginning of Year ISS Staffing Level | E62: Current ISS Staffing Level | F62: Full ISS Employment | G62: Number of ISS Staff Hired | I62: Number of ISS staff and authorized ISS purchased service staff who left or had their employment/contract terminated: | M62: Positions Available | N62: Turnover
B63: Line # | C63: ISS POSITION TYPE (exclude any positions that are being paid at a negotiated/exceptional rate) | D63: Number of ISS staff (Full-time, Part-time, and authorized purchased ISS staff services) on January 1st, 2023 | E63: Number of ISS staff (Full-time, Part-time, and authorized purchased ISS staff services) on December 31, 2023 | F63: Number of ISS staff needed for full employment on December 31st 2023 | G63: a. Number of ISS staff hired, Jan. 1, 2023 - June 30, 2023 | H63: b. Number of ISS staff hired, July 1, 2023 - Dec. 31, 2023 | I63: a. Total ISS Staff who left/or had their employment terminated during the Calendar Year (Col. 6.1 + Col. 6.4 - Col. 6.2) | J63: b. (Six Months) Jan 1, 2023 to June 30, 2023 | K63: c. (Six Months) July 1, 2023 to Dec. 31, 2023 (Col. 6.5a - Col. 6.5b) | L63: d. Optional: Within 90 days of hiring date (Calander Year) | M63: Number of vacancies on Dec 31, 2023 | N63: ISS Staff Turnover percentage, Jan. 1, 2023 - June 30, 2023 | O63: ISS Staff Turnover percentage, July 1, 2023 - Dec. 31, 2023 | P63: ISS Staff Turnover percentage, Calendar Year (Jan.1, 2023-Dec. 31, 2023) | Q63: Average number of days to fill vacant positions (Estimates accepted if unknown)
B64: 1 | C64: ENTRY LEVEL | I64: =D64+G64+H64-E64 -> 0 | K64: =I64-J64 -> 0 | M64: =-E64+F64 -> 0 | N64: =J64/D64 ->  | O64: =K64/E64 ->  | P64: =I64/(AVERAGE(D64:E64)) -> 
B65: 2 | C65: 1st LINE SUPERVISORS (supervisors of DSPs) | I65: =D65+G65+H65-E65 -> 0 | K65: =I65-J65 -> 0 | M65: =-E65+F65 -> 0 | N65: =J65/D65 ->  | P65: =I65/(AVERAGE(D65:E65)) -> 
B66: 3 | C66: PROGRAM MANAGERS (supervisors of 1st line supervisor) | I66: 0 | K66: =I66-J66 -> 0 | M66: =-E66+F66 -> 0
B67: 4 | C67: *SPECIALISTS (recreation, behavioral, or staff trainers, QA, financial, medical coordinators, etc.) | I67: 0 | K67: =I67-J67 -> 0 | M67: =-E67+F67 -> 0
B68: 5 | C68: NURSES (RN, LPN) | I68: =D68+G68+H68-E68 -> 0 | K68: =I68-J68 -> 0 | M68: =-E68+F68 -> 0
C69: TOTAL (Lines 1 thru 5) | D69: =SUM(D64:D68) -> 0 | E69: =SUM(E64:E68) -> 0 | F69: 0 | G69: 0 | H69: 0 | I69: =SUM(I64:I68) -> 0 | J69: 0 | K69: 0 | L69: 0 | M69: =SUM(M64:M68) -> 0 | N69: =J69/D69 ->  | O69: =K69/E69 ->  | P69: =I69/(AVERAGE(D69:E69)) -> 
B71: SECTION 1B (WAGES)
B72: Line # | C72: POSITION TYPE | J72: Starting wage for this type of position within your agency 1/1/23-6/30/23 (Hourly Rate) | L72: What is the average wage for this type of position after two years of employment 1/1/23-6/30/23 (Hourly Rate) | N72: Starting wage for this type of position within your agency 7/1/23-12/31/23 (Hourly Rate) | P72: What is the average wage for this type of position after two years of employment 7/1/23-12/31/23 (Hourly Rate)
B73: 6 | C73: ENTRY LEVEL
B74: 7 | C74: 1st LINE SUPERVISORS
B75: 8 | C75: PROGRAM MANAGERS
B76: 9 | C76: *SPECIALISTS (recreation, behavioral, or staff trainers, etc.)
B77: 10 | C77: NURSES (RN, LPN)
B79: SECTION 1C (RETENTION)
B80: Line # | C80: Length of Time with your Agency as of 12/31/2023 | N80: Using the total number of ISS staff from section 1A, column 2 (current ISS staffing level), what is the length of time they have been with your agency? | P80: Using the total number of ISS staff from section 1A, column 5A (total ISS staff who left), what was the length of time they were with your agency?
B81: 11 | C81: LESS than 6 Months
B82: 12 | C82: BETWEEN 6 and 12 months
B83: 13 | C83: OVER 12 months
C84: Total Staff by Length of Time (Total Lines 7 thru 9) | N84: =IF(SUM(N81:N83)<>E69,"Does not equal Section 1A, Col 2",SUM(N81:N83)) -> 0 | P84: =IF(SUM(P81:Q83)<>I69,"Does not equal Section 1A, Col 5a",SUM(P81:P83)) -> 0
B86: COMMENTS:
B88: DSHS/DDA Schedule E (Rev. 12/2022)

Sheet E - Residential Staffing Add'l
B1: SCHEDULE E
P3: ='A - General Info & Cert'!B6 -> 0
P4: PROVIDER NAME
A6: IMPORTANT, PLEASE READ before completing schedule: COMPLETE A SEPARATE SCHEDULE FOR EACH LOCATION BY: PROGRAM TYPE, CITY, AND COUNTY FOR ADDITIONAL COPIES OF SCHEDULE E CONTACT YOUR AGENCY'S RATE ANALYST Reporting Periods: January 1, 2023 to June 30, 2023 & July 1, 2023 to December 31, 2023 (Semiannual Year, 12 months, 2023)
A8: The schedule(s) will be reviewed by the rate analyst to ensure the Agency is reporting contracts, programs, and locations separately. Any cost reports found to be incomplete will be returned to the agency for correction.
B10: 1. AGENCY INFORMATION:
C12: Where are the Services Provided?
C14: PROGRAM TYPE | F14: PROGRAM NAME | M14: CITY | O14: COUNTY
B17: 2. CONTACT INFORMATION:
C19: Name (Person Completing Schedule):
C20: Title (Person Completing Schedule):
C21: Telephone Number:
C22: E-Mail Address:
B24: 3. CLIENT INFORMATION:
C26: Average Monthly Count of Clients supported in this program?
B28: 4. EMPLOYEE BENEFITS:
C30: In addition to wages, does your agency provide benefits to ISS staff? Select yes or no from drop down list | O30: Yes or No
C31: Medical Insurance (paid in whole or in part by agency)
C32: Dental Insurance (paid in whole or in part by agency)
C33: Retirement (paid in whole or in part by agency)
C34: Paid Sick Leave
C35: Paid Vacation
C36: Short-Term Disability
C37: Long-Term Disability
C38: Jury Duty Leave
C39: Bereavement Leave
C40: Vision Insurance
C41: Employee Assistance Plan
C42: Life Insurance
B44: 5. RECRUITING:
C46: Difference in recruiting new staff from 1/1/2023 - 6/30/2023? (Only check boxes that apply) | L46: ENTRY LEVEL | M46: 1st LINE SUPERVISOR | N46: PROGRAM MANAGERS | O46: *SPECIALISTS (Recreation, behavioral, or staff trainers) | P46: NURSES (RN, LPN)
C47: Situation is worse than previous six months (Harder to recruit)
C48: Some improvement from previous six months (Easier to recruit)
C49: Definite improvement from previous six months (Much easier to recruit)
C50: No difference from previous six months
C52: Difference in recruiting new staff from 7/1/2023 - 12/31/2023? (Only check boxes that apply) | L52: ENTRY LEVEL | M52: 1st LINE SUPERVISOR | N52: PROGRAM MANAGERS | O52: *SPECIALISTS (Recreation, behavioral, or staff trainers) | P52: NURSES (RN, LPN)
C53: Situation is worse than previous six months (Harder to recruit)
C54: Some improvement from previous six months (Easier to recruit)
C55: Definite improvement from previous six months (Much easier to recruit)
C56: No difference from previous six months
B58: 6. STAFFING INFORMATION:
B60: SECTION 1A (TURNOVER)
D61: 1 | E61: 2 | F61: 3 | G61: 4 | I61: 5 | M61: 6 | N61: 7 | Q61: 8
D62: Beginning of Year ISS Staffing Level | E62: Current ISS Staffing Level | F62: Full ISS Employment | G62: Number of ISS Staff Hired | I62: Number of ISS staff and authorized ISS purchased service staff who left or had their employment/contract terminated: | M62: Positions Available | N62: Turnover
B63: Line # | C63: ISS POSITION TYPE (exclude any positions that are being paid at a negotiated/exceptional rate) | D63: Number of ISS staff (Full-time, Part-time, and authorized purchased ISS staff services) on January 1st, 2023 | E63: Number of ISS staff (Full-time, Part-time, and authorized purchased ISS staff services) on December 31, 2023 | F63: Number of ISS staff needed for full employment on December 31st 2023 | G63: a. Number of ISS staff hired, Jan. 1, 2023 - June 30, 2023 | H63: b. Number of ISS staff hired, July 1, 2023 - Dec. 31, 2023 | I63: a. Total ISS Staff who left/or had their employment terminated during the Calendar Year (Col. 6.1 + Col. 6.4 - Col. 6.2) | J63: b. (Six Months) Jan 1, 2023 to June 30, 2023 | K63: c. (Six Months) July 1, 2023 to Dec. 31, 2023 (Col. 6.5a - Col. 6.5b) | L63: d. Optional: Within 90 days of hiring date (Calander Year) | M63: Number of vacancies on Dec 31, 2023 | N63: ISS Staff Turnover percentage, Jan. 1, 2023 - June 30, 2023 | O63: ISS Staff Turnover percentage, July 1, 2023 - Dec. 31, 2023 | P63: ISS Staff Turnover percentage, Calendar Year (Jan.1, 2023-Dec. 31, 2023) | Q63: Average number of days to fill vacant positions (Estimates accepted if unknown)
B64: 1 | C64: ENTRY LEVEL | I64: =D64+G64+H64-E64 -> 0 | K64: =I64-J64 -> 0 | M64: =-E64+F64 -> 0 | N64: =J64/D64 ->  | O64: =K64/E64 ->  | P64: =I64/(AVERAGE(D64:E64)) -> 
B65: 2 | C65: 1st LINE SUPERVISORS (supervisors of DSPs) | I65: =D65+G65+H65-E65 -> 0 | K65: =I65-J65 -> 0 | M65: =-E65+F65 -> 0 | N65: =J65/D65 ->  | P65: =I65/(AVERAGE(D65:E65)) -> 
B66: 3 | C66: PROGRAM MANAGERS (supervisors of 1st line supervisor) | I66: 0 | K66: =I66-J66 -> 0 | M66: =-E66+F66 -> 0
B67: 4 | C67: *SPECIALISTS (recreation, behavioral, or staff trainers, QA, financial, medical coordinators, etc.) | I67: 0 | K67: =I67-J67 -> 0 | M67: =-E67+F67 -> 0
B68: 5 | C68: NURSES (RN, LPN) | I68: =D68+G68+H68-E68 -> 0 | K68: =I68-J68 -> 0 | M68: =-E68+F68 -> 0
C69: TOTAL (Lines 1 thru 5) | D69: =SUM(D64:D68) -> 0 | E69: =SUM(E64:E68) -> 0 | F69: 0 | G69: 0 | H69: 0 | I69: =SUM(I64:I68) -> 0 | J69: 0 | K69: 0 | L69: 0 | M69: =SUM(M64:M68) -> 0 | N69: =J69/D69 ->  | O69: =K69/E69 ->  | P69: =I69/(AVERAGE(D69:E69)) -> 
B71: SECTION 1B (WAGES)
B72: Line # | C72: POSITION TYPE | J72: Starting wage for this type of position within your agency 1/1/23-6/30/23 (Hourly Rate) | L72: What is the average wage for this type of position after two years of employment 1/1/23-6/30/23 (Hourly Rate) | N72: Starting wage for this type of position within your agency 7/1/23-12/31/23 (Hourly Rate) | P72: What is the average wage for this type of position after two years of employment 7/1/23-12/31/23 (Hourly Rate)
B73: 6 | C73: ENTRY LEVEL
B74: 7 | C74: 1st LINE SUPERVISORS
B75: 8 | C75: PROGRAM MANAGERS
B76: 9 | C76: *SPECIALISTS (recreation, behavioral, or staff trainers, etc.)
B77: 10 | C77: NURSES (RN, LPN)
B79: SECTION 1C (RETENTION)
B80: Line # | C80: Length of Time with your Agency as of 12/31/2023 | N80: Using the total number of ISS staff from section 1A, column 2 (current ISS staffing level), what is the length of time they have been with your agency? | P80: Using the total number of ISS staff from section 1A, column 5A (total ISS staff who left), what was the length of time they were with your agency?
B81: 11 | C81: LESS than 6 Months
B82: 12 | C82: BETWEEN 6 and 12 months
B83: 13 | C83: OVER 12 months
C84: Total Staff by Length of Time (Total Lines 7 thru 9) | N84: =IF(SUM(N81:N83)<>E69,"Does not equal Section 1A, Col 2",SUM(N81:N83)) -> 0 | P84: =IF(SUM(P81:Q83)<>I69,"Does not equal Section 1A, Col 5a",SUM(P81:P83)) -> 0
B86: COMMENTS:
B88: DSHS/DDA Schedule E (Rev. 12/2022)

Sheet F - Healthcare Expenses
B1: SCHEDULE F
J3: ='A - General Info & Cert'!B6 -> 0
J4: PROVIDER NAME
A6: INCLUDE ALL PROGRAMS FOR THE AGENCY ON THIS SCHEDULE
A7: Reporting Period: Dececmber 1, 2023 to December 31, 2023 (One Month)
B8: PROVIDER INFORMATION:
J9: Where are the Client Services Provided?
B10: PROGRAM TYPE | D10: PROVIDER NUMBER | E10: PROGRAM NAME | J10: CITY | K10: COUNTY
B11: Supported Living
B12: Group Home
B13: Group Training Home
B14: Supported Living - SOLA
B16: CONTACT INFORMATION:
C18: Name (Person Completing Schedule)
C19: Title (Person Completing Schedule)
C20: Telephone Number:
C21: E-Mail Address:
B23: HEALTH INSURANCE:
B25: 1. Total Number of employees working for the agency | J25: 0
B26: 2. Total number of Employees from #1 averaging 29 or less hours per week
B27: 3. Total number of Employees from #1 averaging 30-39 hours per week
B28: 4. Total number of Employees from #1 averaging 40 or more hours per week **The sum of #2, 3, & 4 must equal the total number of employees reported on #1
B29: 5. Currently how many employees who work in Supported Living (SL), Group Home (GH), Group Training Home (GTH) or Children's Licensed Staffed Residential (LSR) are on your company provided health insurance plan? Please provide one number for all types of services - add them all together whether your company provides coverage for them separately or accounts for them separately. **This is for health insurance - do not include dental or other services (such as an Employee Assistance Plan (EAP), life insurance, disability insurance etc). Do not include coverage for employees who primarily work in other streams of revenue - private pay, home care, community access, supported employment etc.
B30: 6. Currently how many ISS hours per week does an employee have to work to be eligible for your company provided health insurance?
B31: 7. What is the average cost per employee (the premium per subscriber) of company provided health insurance? This is the cost to the company and does not include the participation by the employee - if your current premium is $100.00 per subscriber and the employee pays $20.00 towards the premium then you would enter $80.00
B32: 8. Currently how many of your employees work thirty (30) or more hours per week, but are not eligible for company provided health insurance?
B33: 9. Currently how many employees have waived your company provided health insurance, but will be required to take advantage of it in 2024? (Not 2023)
B34: 10. Taking into account your answers to question #4, #7 and #8; how many employees do you estimate will be enrolled in your company provided health insurance plan in 2024 to ensure compliance with the ACA? What is the total amount of enrollees you anticipate will be on your plan. (Not 2023)
B36: 11. Over a five year period what has been the percentage per employee (per subscriber) premium increase on your company provided health insurance? Please select a consecutive five year period, 2018 to 2022 or 2019 to 2023. Please represent this number as a percentage based on a per employee/subscriber cost increase from the prior year. For example: In 2020 the premium per employee was $100 and then increased to $150 in 2021; in 2021 you had a 50% increase in your per employee/subscriber premium costs. | F36: 2018 | G36: 2019 | H36: 2020 | I36: 2021 | J36: 2022 | K36: =J36+1 -> 2023
B39: 12. Over the same five year period you included in question 11 above, did your company reduce benefits offered through your company provided health insurance plan to reduce the company costs per employee (per subscriber) because the proposed rate increase was too high? For example, did your company move to a less robust plan which provided less coverage for employees/subscribers and required higher co-pays and deductibles? Please answer with "Yes" or "No" | F39: 2018 | G39: 2019 | H39: 2020 | I39: 2021 | J39: 2022 | K39: =J39+1 -> 2023
B42: 13. How many clients does your company serve in SL, GH, GTH, and/or LSR? Please add all numbers together and provide one number for all clients served in all programs.
B43: DSHS/DDA Schedule F (Rev. 12/2022)

Sheet G - ISS Settlement
A1: SCHEDULE G
C3: =_M000001 -> 0
C4: PROVIDER NAME
A6: A | B6: B | C6: C
A7: REIMBURSEMENT SUMMARY
A8: Line | B8: Tiered ISS Reimbursements by Program Type | C8: ISS Reimbursement
A9: 1 | B9: SL Supported Living | E9: =IF(B9="GH Group Home",2,IF(B9="GTH Group Training Home",3,IF(B9="SL Supported Living",1,"NA"))) -> 1
A10: =A9+1 -> 2 | B10: GH Group Home | E10: =IF(B10="GH Group Home",2,IF(B10="GTH Group Training Home",3,IF(B10="SL Supported Living",1,"NA"))) -> 2
A11: =A10+1 -> 3 | B11: GTH Group Training Home | E11: =IF(B11="GH Group Home",2,IF(B11="GTH Group Training Home",3,IF(B11="SL Supported Living",1,"NA"))) -> 3
A12: =+A11+1 -> 4 | B12: Sub-Total | C12: =SUM(C9:C11) -> 0
B14: Nurse Delegation and Staff Add On | C14: ISS Reimbursement
A15: =+A12+1 -> 5 | B15: SL Nurse Delegation | E15: 1
A16: =+A15+1 -> 6 | B16: GH Nurse Delegation | E16: 2
A17: =+A16+1 -> 7 | B17: GTH Nurse Delegation | E17: 3
A18: =+A17+1 -> 8 | B18: SL Staff Add On | E18: 1
A19: =+A18+1 -> 9 | B19: GH Staff Add On | E19: 2
A20: =+A19+1 -> 10 | B20: GTH Staff Add On | E20: 3
A21: =A20+1 -> 11 | B21: Sub-Total | C21: =SUM(C15:C20) -> 0
B23: Staffed Professional Services: (RN, LPN, DBT, Therapist, etc.) | C23: Professional Services ISS Reimbursement
A24: =+A21+1 -> 12 | B24: SL Supported Living Staffed Professional Services | E24: =IF(F24="GH",2,IF(F24="GT",3,IF(F24="SL",1,""))) -> 1 | F24: =LEFT(B24,2) -> SL
A25: =+A24+1 -> 13 | B25: GH Group Home Staffed Professional Services | E25: =IF(F25="GH",2,IF(F25="GT",3,IF(F25="SL",1,""))) -> 2 | F25: =LEFT(B25,2) -> GH
A26: =+A25+1 -> 14 | B26: GTH Group Training Home Staffed Professional Services | E26: =IF(F26="GH",2,IF(F26="GT",3,IF(F26="SL",1,""))) -> 3 | F26: =LEFT(B26,2) -> GT
A27: =+A26+1 -> 15 | B27: Sub-Total | C27: =SUM(C24:C26) -> 0
A29: =+A27+1 -> 16 | B29: Total ISS Reimbursements paid by DSHS (carries to Line 17) | C29: =C12+C21+C27 -> 0
A30: SETTLEMENT
A31: =A29+1 -> 17 | B31: TOTAL REIMBURSED DOLLARS (Auto-filled from Line 16) | C31: =C29 -> 0
A32: =A31+1 -> 18 | B32: ISS Staff Payroll & Allowable Administrator ISS Payroll less Overtime (Auto-filled from Sch B, Row 65, Col R less Sch B, Row 65, Col E) | C32: ='B - ISS Payroll Expenses'!S77-'B - ISS Payroll Expenses'!F77 -> 0
A33: =A32+1 -> 19 | B33: ISS Overtime Staff Costs (Auto-filled from Sch B, Row 65, Col E) | C33: ='B - ISS Payroll Expenses'!F77 -> 0
B34: Authorized Purchased or Contracted Professional Services: (RN, LPN, DBT, Therapist, etc.)
A35: =A33+1 -> 20 | B35: SL Authorized ISS Purchased or Contracted Professional Services | E35: =IF(F35="GH",2,IF(F35="GT",3,IF(F35="SL",1,""))) -> 1 | F35: =LEFT(B35,2) -> SL
A36: =A35+1 -> 21 | B36: GH Authorized ISS Purchased or Contracted Professional Services | E36: =IF(F36="GH",2,IF(F36="GT",3,IF(F36="SL",1,""))) -> 2 | F36: =LEFT(B36,2) -> GH
A37: =A36+1 -> 22 | B37: GTH Authorized ISS Purchased or Contracted Professional Services | E37: =IF(F37="GH",2,IF(F37="GT",3,IF(F37="SL",1,""))) -> 3 | F37: =LEFT(B37,2) -> GT
A38: =A37+1 -> 23 | B38: TOTAL ALLOWABLE ISS COSTS PAID BY THE PROVIDER (Line 18+19+20+21+22) | C38: =SUM(C32:C37) -> 0
A39: =A38+1 -> 24 | B39: TOTAL PRELIMINARY NET SETTLEMENT AMOUNT | C39: =IF((_C001589-C38)<0,0,(_C001589-C38)) -> 0
B40: DSHS/DDA Schedule G ISS Settlement (Rev. 12/2022)
